{"text_format":"1","workbook":"xlsx","n_sheets":4,"sheets":["master trans spreadsheet","util_sorc  - legacy graphics","all util_ush scripts","util_sorc - all other"],"not_rendered":{"charts":0,"images":0,"macros":0,"external_links":0,"defined_names":0,"comments":1,"pivot_tables":0},"unopened":[],"bounds":{"document_bytes":16777216,"sheet_cells":100000,"rows_first":2000,"rows_last":500,"rows_between":2000,"halvings":0,"cell_chars":16384,"cell_head_chars":4096},"cells_cut":0,"cells_raw":0,"read":"whole","date_system":"1900"}

{"sheet":"master trans spreadsheet","index":0,"n_rows":232,"n_cols":14,"rows_kept":232,"cut":false,"hidden":false,"merged":[[8,2,8,4],[8,5,8,8],[227,2,227,4],[34,2,34,4],[110,2,110,4],[134,2,134,4],[158,2,158,4],[167,2,167,4],[214,2,214,4],[61,2,61,4],[67,2,67,4],[75,2,75,4],[86,2,86,4],[96,2,96,4],[12,2,12,4],[29,2,29,4],[43,2,43,4],[48,2,48,4],[56,2,56,4],[1,13,2,13],[0,0,0,13],[1,2,1,4],[1,5,1,8],[1,0,2,0],[1,1,2,1],[1,10,2,10],[1,12,2,12],[1,11,2,11],[29,5,29,8],[34,5,34,8],[12,5,12,8],[43,5,43,8],[48,5,48,8],[56,5,56,8],[61,5,61,8],[67,5,67,8],[75,5,75,8],[96,5,96,8],[110,5,110,8],[134,5,134,8],[158,5,158,8],[167,5,167,8],[66,2,66,4]]}
["v2.40_20121206 2242Z"]
["Model","Subset","Porting, Testing and Source Code Certification - Development Organization Branch Chiefs certify. ",null,null,"Production Validation - NCO/PMB Branch certify",null,null,null,"Customer Validation - NCO Director certify","Developer","Email","Org","Notes"]
[null,null,"developer first compile:\n\nEnter Planned Completion Date in BLUE font, \nEnter Actual Completed Date in GREEN  font.  GRAY fill indicates no update received. RED indicates mgmt action needed.  PURPLE bold indicates too far in the future.","developer first test - products produced:\n\nEnter Planned Completion Date in BLUE font, \nEnter Actual Completed Date in GREEN  font.  GRAY fill indicates no update received. RED indicates mgmt action needed.  PURPLE  bold indicates too far in the future","developer  validation of products using canned data on Tide:   Enter Planned Completion Date in BLUE font, \nEnter Actual Completed Date in GREEN  font.  GRAY fill indicates no update received. RED indicates mgmt action needed.  PURPLE bold indicates too far in the future.","NCO test - canned data :    \nEnter Planned Completion Date in BLUE font, \nEnter Actual Completed Date in GREEN  font.  GRAY fill indicaties no update received. RED indicates mgmt action needed.  PURPLE bold indicates too far in the future.\n\n\n","developer validates NCO test - canned data:\n\nEnter Planned Completion Date in BLUE font, \nEnter Actual Completed Date in GREEN  font.  GRAY fill indicates no update received. RED indicates mgmt action needed.  PURPLE bold indicates too far in the future.","NCO test- live data: Planned Completion Date in BLUE font, \nEnter Actual Completed Date in GREEN  font.  GRAY fill indicates no update received.  RED indicates mgmt action needed.  PURPLE bold indicates too far in the future.","developer validates NCO test - live data:\n\nEnter Planned Completion Date in BLUE font, \nEnter Actual Completed Date in GREEN  font.  GRAY fill indicates no update received.  RED indicates mgmt action needed.  PURPLE bold indicates too far in the future.","customer validates NCO test - live data:\nEnter Planned Completion Date in BLUE font, \nEnter Actual Completed Date in GREEN  font.  GRAY fill indicates no update received.  RED indicates mgmt action  needed.  PURPLE bold indicates too far in the future.\n"]
["OBSPROC_Dump",null,"2012-06-25","2012-12-21","2012-12-28",{"$f":"SUM(E4,7)","v":"2013-01-04"},"2013-01-11","2013-01-18","2013-01-25",null,"Keyser","dennis.keyser@noaa.gov","EMC","columns D and E originally 11/30/12."]
["OBSPROC_DumpPost",null,"2012-06-25","2012-12-28","2012-12-28","2013-01-04","2013-01-11","2013-01-18","2013-01-25",null,"Keyser","dennis.keyser@noaa.gov","EMC"," "]
["OBSPROC_TropCyQCRelo",null,"2012-06-25","2012-12-28","2012-12-28",{"$f":"SUM(E6,7)","v":"2013-01-04"},"2013-01-11","2013-01-18","2013-01-25",null,"Keyser","dennis.keyser@noaa.gov","EMC"," "]
["OBSPROC_Prep",null,"2012-06-25","2012-12-21","2012-12-28",{"$f":"SUM(E7,7)","v":"2013-01-04"},"2013-01-11","2013-01-18","2013-01-25",null,"Keyser","dennis.keyser@noaa.gov","EMC","-- Generation of prepbufr files (starting fr dump files)"]
["OBSPROC_PrepPost",null,"2012-06-25","2012-12-28","2012-12-28",{"$f":"SUM(E8,7)","v":"2013-01-04"},"2013-01-11","2013-01-18","2013-01-25",null,"Keyser","dennis.keyser@noaa.gov","EMC","-- Additional processing & product gen after prepbufr"]
["OBSPROC_satingest",null,null,null,null,null,null,null,null,null,null,null,"EMC"]
[" ","all but amsre, windsat","2012-06-25","2012-12-14","n/a","n/a","n/a","2012-12-14",{"$f":"SUM(H10,7)","v":"2012-12-21"},null,"Keyser","dennis.keyser@noaa.gov","EMC","Nine sat ingest jobs running on Tide as of 11/20/12.  Columns D and E originally 11/9/12."]
[null,"AMSR-E","2012-06-25","2012-12-28","n/a","n/a","n/a","2013-01-04","2013-01-04",null,"Keyser","dennis.keyser@noaa.gov","EMC","low priority - sat data feed offline"]
[null,"windsat","2012-06-25","2012-12-28","n/a","n/a","n/a","2013-01-04","2013-01-04",null,"Keyser","dennis.keyser@noaa.gov","EMC","low priority - sat data feed dead"]
["GFS",null,null,null,null,null,null,null,null,null," "," "," "]
[null,"GSI","2012-04-26","2012-11-30","2013-01-04",{"$f":"SUM(E14,21)","v":"2013-01-25"},{"$f":"SUM(F14,7)","v":"2013-02-01"},"2013-02-08","2013-02-15",null,"Treadon","russ.treadon@noaa.gov","EMC","Functionality may be absorbed into GSI upgrades"]
[null,"GSM","2012-05-11","2012-11-30","2012-12-31",{"$f":"F14","v":"2013-01-25"},"2013-02-01","2013-02-08","2013-02-15",null,"Moorthi","shrinivas.moorthi@noaa.gov ","EMC","ENKF consists of many job steps (uses GSI, global forecast model, …)"]
[null,"prep --- see OBSPROC","n/a","n/a","n/a","n/a","n/a","n/a","n/a",null," ",null,"EMC"," "]
[null,"forecast --- see GSM above","n/a","n/a","n/a","n/a","n/a","n/a","n/a",null," ",null,"EMC"," "]
[null,"angupdate","2012-06-06","2012-11-30","2013-01-04",{"$f":"F14","v":"2013-01-25"},{"$f":"SUM(F18,7)","v":"2013-02-01"},"2013-02-08","2013-02-15",null,"Treadon","russ.treadon@noaa.gov","EMC"]
[null,"enkf","2012-06-06","2012-11-30","2013-01-04",{"$f":"F14","v":"2013-01-25"},{"$f":"SUM(F19,7)","v":"2013-02-01"},"2013-02-08","2013-02-15",null,"Treadon","russ.treadon@noaa.gov","EMC"]
[null,"radiance monitoring","2012-09-18","2013-01-04","2013-01-18",{"$f":"SUM(E20,21)","v":"2013-02-08"},{"$f":"SUM(F20,7)","v":"2013-02-15"},"2013-02-22","2013-03-01",null,"Treadon","russ.treadon@noaa.gov","EMC"]
[null,"post proc","2012-10-16","2012-11-08","2012-12-15",{"$f":"F14","v":"2013-01-25"},{"$f":"SUM(F21,7)","v":"2013-02-01"},"2013-02-08","2013-02-15",null,"Chuang","hui-ya.chuang@noaa.gov","EMC","10/18 - need new dates for cols 2 and 3"]
[null,"crtm","2012-08-11","2012-08-11","2012-08-11",{"$f":"F14","v":"2013-01-25"},{"$f":"SUM(F22,7)","v":"2013-02-01"},"2013-02-08","2013-02-15",null,"VanDelst","paul.vandelst@noaa.gov","EMC"]
[null,"global_cycle","2012-05-11","2012-11-30","2012-12-31",{"$f":"F14","v":"2013-01-25"},{"$f":"SUM(F23,7)","v":"2013-02-01"},"2013-02-08","2013-02-15",null,"Moorthi","shrinivas.moorthi@noaa.gov ","EMC"]
[null,"global_chgres","2012-05-11","2012-11-30","2012-12-31",{"$f":"F14","v":"2013-01-25"},{"$f":"SUM(F24,7)","v":"2013-02-01"},"2013-02-08","2013-02-15",null,"Moorthi","shrinivas.moorthi@noaa.gov ","EMC"]
["NDAS",null,"2012-04-27","2012-11-30","2012-12-20",{"$f":"SUM(E25,21)","v":"2013-01-10"},{"$f":"SUM(F25,7)","v":"2013-01-17"},"2013-01-24","2013-01-31",null,"Rogers ","eric.rogers@noaa.gov","EMC"]
["NAM",null,"2012-04-27","2012-10-05","2012-12-20","2013-01-10",{"$f":"SUM(F26,7)","v":"2013-01-17"},"2013-01-24","2013-01-31",null,"Rogers","eric.rogers@noaa.gov","EMC"]
["DGEX",null,"2012-04-27","2012-11-30","2012-12-20","2013-01-10",{"$f":"SUM(F27,7)","v":"2013-01-17"},"2013-01-24","2013-01-31",null,"Rogers","eric.rogers@noaa.gov","EMC"]
["RAP",null,"2012-11-21","2012-12-07","2012-12-21","2013-01-11",{"$f":"SUM(F28,7)","v":"2013-01-18"},"2013-01-25","2013-02-01",null,"Manikin ","geoffrey.manikin@noaa.gov","EMC"]
["NARRE",null,"2012-08-22","2012-08-31","2012-12-10"," "," "," "," ",null,"B.Zhou","binbin.zhou@noaa.gov","EMC"]
["GEFS",null,null,null,null,null,null,null,null,null," "," "," "]
[null,"GEFS - ETR and post","2012-10-10","2012-12-31","2013-01-31",{"$f":"SUM(E31,21)","v":"2013-02-21"},{"$f":"SUM(F31,7)","v":"2013-02-28"},"2013-03-07","2013-03-14",null,"Wobus","richard.wobus@noaa.gov","EMC","col E one month delay (as of 12/6/12).  GEFS was in the first group of models for SPAs to port."]
[null,"NAEFS post proc","2012-10-25","2012-12-31","2013-01-31",{"$f":"SUM(E32,21)","v":"2013-02-21"},{"$f":"SUM(F32,7)","v":"2013-02-28"},{"$f":"SUM(G32,7)","v":"2013-03-07"},{"$f":"SUM(H32,7)","v":"2013-03-14"},null,"Cui","bo.cui@noaa.gov","EMC","col E one month delay (as of 12/6/12)"]
[null,"WSR","2012-11-15","2012-12-14","2012-12-21",{"$f":"F31","v":"2013-02-21"},{"$f":"SUM(F33,7)","v":"2013-02-28"},"2013-03-07","2013-03-14",null,"Wobus","richard.wobus@noaa.gov","EMC","10/10/12 - compile ongoing"]
[null,"CCPA","2012-11-15","2012-11-30","2012-12-31","2013-01-21",{"$f":"SUM(F34,7)","v":"2013-01-28"},"2013-02-04","2013-02-11",null,"Y. Luo","yan.luo@noaa.gov","EMC"]
["SREF"]
[" ","post processing and product generation","2012-09-13","2012-09-30","2012-12-31",{"$f":"SUM(E36,21)","v":"2013-01-21"},{"$f":"SUM(F36,7)","v":"2013-01-28"},"2013-02-04","2013-02-11",null,"Du ","jun.du@noaa.gov","EMC"]
[null,"WRF-ARW","2012-10-02","2012-10-15","2012-12-31",{"$f":"F36","v":"2013-01-21"},{"$f":"SUM(F37,7)","v":"2013-01-28"},"2013-02-04","2013-02-11",null,"Du ","jun.du@noaa.gov","EMC"]
[null,"WRF-NMM","2012-10-02","2012-10-15","2012-12-31",{"$f":"F36","v":"2013-01-21"},{"$f":"SUM(F38,7)","v":"2013-01-28"},"2013-02-04","2013-02-11",null,"Du ","jun.du@noaa.gov","EMC"]
[null,"NEMS-NMMB","2012-10-02","2012-10-15","2012-12-31",{"$f":"F36","v":"2013-01-21"},{"$f":"SUM(F39,7)","v":"2013-01-28"},"2013-02-04","2013-02-11",null,"Du ","jun.du@noaa.gov","EMC"]
["CDAS",null,"2012-06-20","2012-12-07","2012-12-26"," "," "," "," ",null,"Ebisuzaki","Wesley.Ebisuzaki@noaa.gov ","CPC","11/27/12 - needs exgfs_makeprepbufr.sh.ecf in order to run."]
["CDAS2",null,"2012-06-13","2012-06-18","2012-12-31"," "," "," "," ",null,"Ebisuzaki","Wesley.Ebisuzaki@noaa.gov ","CPC"]
["CFSv2",null,"2012-09-24","2012-12-30","2013-01-30","2013-03-25",{"$f":"SUM(F42,7)","v":"2013-04-01"},"2013-04-08","2013-04-15",null,"J. Zhu","yuqiu.zhu@noaa.gov","EMC","11/28/12 - one month delay added to cols D and E due to transition issues."]
["RTMA",null,"2012-07-25","2012-09-24","2012-12-07","2013-01-19",{"$f":"SUM(F43,7)","v":"2013-01-26"},"2013-02-02","2013-02-09",null,"Pondeca","manuel.pondeca@noaa.gov","EMC"]
["RTOFS",null,null,null,null,null,null,null,null,null," "," "," "]
[null,"RTOFS-Global","2012-12-07","2012-12-24","2013-01-14","2013-02-08",{"$f":"SUM(F45,7)","v":"2013-02-15"},{"$f":"SUM(G45,7)","v":"2013-02-22"},{"$f":"SUM(H45,7)","v":"2013-03-01"},null,"Rivin","ilya.rivin@noaa.gov","EMC","10/15/12 - Eddy compile successful.  Tide compile has problems re: netCDF"]
[null,"RTOFS-Atlantic fcst","2012-11-30","2012-12-15","2013-01-04",{"$f":"F45","v":"2013-02-08"},{"$f":"SUM(F46,7)","v":"2013-02-15"},"2013-02-22","2013-03-01",null,"D. Iredell","dan.iredell@noaa.gov","EMC"]
[null,"RTOFS-Atlantic nwcst","2012-12-14","2013-01-04","2013-01-14",{"$f":"F46","v":"2013-02-08"},{"$f":"SUM(F47,7)","v":"2013-02-15"},{"$f":"SUM(G47,7)","v":"2013-02-22"},{"$f":"SUM(H47,7)","v":"2013-03-01"},null,"D. Iredell","dan.iredell@noaa.gov","EMC"]
[null,"RTOFS-ET-wpa","2012-12-14","2012-12-31","2013-01-14",{"$f":"F45","v":"2013-02-08"},{"$f":"SUM(F48,7)","v":"2013-02-15"},"2013-02-22","2013-03-01",null,"Rivin","ilya.rivin@noaa.gov","EMC","Needs RTOFS Global to be done first"]
["WAVE",null,null,null,null,null,null,null,null,null," "," "," "]
[null,"multi_1 (global)","2012-07-31","2012-12-14","2013-01-04","2013-02-16",{"$f":"SUM(F50,7)","v":"2013-02-23"},"2013-03-02","2013-03-09",null,"Chawla","arun.chawla@noaa.gov","EMC"]
[null,"multi_2 (hurricane)","2012-07-31","2012-12-14","2013-01-04",{"$f":"F50","v":"2013-02-16"},{"$f":"SUM(F51,7)","v":"2013-02-23"},"2013-03-02","2013-03-09",null,"Chawla","arun.chawla@noaa.gov","EMC"]
[null,"glw (Great Lakes NAM)","2012-07-31","2012-12-14","2013-01-04",{"$f":"F50","v":"2013-02-16"},{"$f":"SUM(F52,7)","v":"2013-02-23"},"2013-03-02","2013-03-09",null,"Alves","henrique.alves@noaa.gov","EMC","GLW and GLWN will be combined during transition.  Output remains unchanged."]
[null,"glwn (Great Lakes (NDFD)","n/a","n/a","n/a","n/a","n/a","n/a","n/a",null,"Alves","henrique.alves@noaa.gov","EMC","see above"]
[null,"nww3 (old global model)","n/a","n/a","n/a","n/a","n/a","n/a","n/a",null,"Chawla","arun.chawla@noaa.gov","EMC","Will be retired, products merged with multi_1"]
[null,"ensemble - global","2012-07-31","2012-12-21","2013-01-04",{"$f":"F50","v":"2013-02-16"},{"$f":"SUM(F55,7)","v":"2013-02-23"},"2013-03-02","2013-03-09",null,"Alves","henrique.alves@noaa.gov","EMC"]
[null,"combined NCEP / FNMOC ensemble (nfcens)","2012-07-31","2012-12-08","2012-12-21",{"$f":"F50","v":"2013-02-16"},{"$f":"SUM(F56,7)","v":"2013-02-23"},"2013-03-02","2013-03-09",null,"Alves","henrique.alves@noaa.gov","EMC"]
["HiResW",null,null,null,null,null,null,null,null,null," "," "," "]
[null,"WRF-ARW","2012-07-23","2012-11-06","2012-12-05","2013-03-02",{"$f":"SUM(F58,7)","v":"2013-03-09"},"2013-03-16","2013-03-23",null,"Pyle","matthew.pyle@noaa.gov","EMC"]
[null,"WRF-NMM","2012-07-23","2012-11-06","2012-12-05",{"$f":"F58","v":"2013-03-02"},{"$f":"SUM(F59,7)","v":"2013-03-09"},"2013-03-16","2013-03-23",null,"Pyle","matthew.pyle@noaa.gov","EMC"]
["HWRF",null,"2012-05-03","2012-11-30","2012-12-06","2013-03-17",{"$f":"SUM(F60,7)","v":"2013-03-24"},"2013-03-31","2013-04-07",null,"Tallapragada","vijay.tallapragada@noaa.gov","EMC"]
["GFDL",null,"2012-12-14","2012-12-14","2012-12-28",{"$f":"F60","v":"2013-03-17"},{"$f":"SUM(F61,7)","v":"2013-03-24"},"2013-03-31","2013-04-07",null,"Bender/Marchok","morris.bender@noaa.gov,timothy.marchok@noaa.gov","GFDL"]
["HYSPLIT",null,null,null,null,null,null,null,null,null," "," "," "]
[null,"smoke","2012-10-25","2012-11-30","2012-12-31","2013-03-02",{"$f":"SUM(F63,7)","v":"2013-03-09"},"2013-03-16","2013-03-23",null,"Huang","jianping.huang@noaa.gov","EMC"]
[null,"dust","2012-10-25","2012-11-30","2012-12-31",{"$f":"F63","v":"2013-03-02"},{"$f":"SUM(F64,7)","v":"2013-03-09"},"2013-03-16","2013-03-23",null,"Huang","jianping.huang@noaa.gov","EMC"]
[null,"volc ash","2012-10-25","2012-12-14","2012-12-31",{"$f":"F63","v":"2013-03-02"},{"$f":"SUM(F65,7)","v":"2013-03-09"},"2013-03-16","2013-03-23",null,"Stunder","barbara.stunder@noaa.gov","ARL"]
["FNMOCENS",null,"2012-10-31","2012-11-30","2012-12-31"," "," "," "," ",null,"B. Cui","bo.cui@noaa.gov","EMC"]
["CDC",null,"not being ported to WCOSS",null,null,null,null,null,null,null,"Ebisuzaki","Wesley.Ebisuzaki@noaa.gov ","CPC","not being ported to WCOSS"]
["VERF",null,null,null,null,null,null,null,null,null," "," ","EMC"]
[null,"gridtobs","2012-07-13","2012-08-02","2012-12-21","2013-04-15",{"$f":"SUM(F69,7)","v":"2013-04-22"},"2013-04-29","2013-05-06",null,"Shafran","perry.shafran@noaa.gov","EMC"]
[null,"grid2grid","2012-08-17","2012-09-20","2012-12-20",{"$f":"F69","v":"2013-04-15"},{"$f":"SUM(F70,7)","v":"2013-04-22"},"2013-04-29","2013-05-06",null,"B. Zhou","binbin.zhou@noaa.gov","EMC"]
[null,"precip_verf","2012-08-02","2012-09-13","2012-12-28",{"$f":"F69","v":"2013-04-15"},"2013-04-22","2013-04-29","2013-05-06",null,"Y. Lin","ying.lin@noaa.gov","EMC","was 6/29/12, 7/16/12, 7/31/12"]
["Tracker",null,"2012-08-08","2012-09-06","2012-11-28",{"$f":"SUM(E72,7)","v":"2012-12-05"},"2012-12-12","2012-12-19","2012-12-26",null,"Guang Ping Lou","guang.ping.lou@noaa.gov","EMC"]
["NGAC (GOCART)",null,"2012-12-05","2012-12-20","2013-01-03","2013-04-11",{"$f":"SUM(F73,7)","v":"2013-04-18"},"2013-04-25","2013-05-02",null,"S. Lu","sarah.lu@noaa.gov","EMC"]
["GODAS",null,"2012-11-16","2012-12-31","2013-01-31"," "," "," "," ",null,"Behringer","david.behringer@noaa.gov","EMC"]
["RCDAS",null,"2012-07-10","2012-11-30","2012-12-14"," "," "," "," ",null,"Ebisuzaki","Wesley.Ebisuzaki@noaa.gov ","CPC"]
["RTGSST",null,null,null,null,null,null,null,null,null," "," "," "]
[null,"Low res","2012-11-28","2012-12-14","2012-12-28","2013-03-11",{"$f":"SUM(F77,7)","v":"2013-03-18"},{"$f":"SUM(G77,7)","v":"2013-03-25"},{"$f":"SUM(H77,7)","v":"2013-04-01"},null,"Grumbine","robert.grumbine@noaa.gov","EMC","needs dumpjb!"]
[null,"High res","2012-12-06","2012-12-21","2013-01-31",{"$f":"F77","v":"2013-03-11"},{"$f":"SUM(F78,7)","v":"2013-03-18"},{"$f":"SUM(G78,7)","v":"2013-03-25"},{"$f":"SUM(H78,7)","v":"2013-04-01"},null,"Grumbine","robert.grumbine@noaa.gov","EMC","needs dumpjb!"]
["SSTOIQD (0.25 degree SST)",null,"2012-09-20","2012-11-29","2013-01-04"," "," "," "," ",null,"Stokes","diane.stokes@noaa.gov","EMC","check SMS graph - this was listed as QDOI"]
["GDAS_SSTOI (1 degree SST)",null,"2012-09-17","2012-11-19","2013-01-04"," "," "," "," ",null,"Stokes","diane.stokes@noaa.gov","EMC","check SMS graph - this was listed as Daily OI"]
["Sea Ice Concentration",null,"2012-11-09","2012-11-30","2012-12-07"," "," "," "," ",null,"Grumbine","robert.grumbine@noaa.gov","EMC"]
["Sea Ice Drift",null,"2012-11-09","2012-11-21","2012-11-21","2012-11-27",{"$f":"SUM(F82,7)","v":"2012-12-04"},{"$f":"SUM(G82,7)","v":"2012-12-11"},{"$f":"SUM(H82,7)","v":"2012-12-18"},null,"Grumbine","robert.grumbine@noaa.gov","EMC"]
["Gulf Stream Finder",null,"2012-10-01","2012-11-09","2012-10-26"," "," "," "," ",null,"Grumbine","robert.grumbine@noaa.gov","EMC"]
["Ship Icing",null,"2012-11-09","2012-11-23","2012-11-27",{"$f":"SUM(E84,7)","v":"2012-12-04"},"2012-12-11","2012-12-18","2012-12-25",null,"Grumbine","robert.grumbine@noaa.gov","EMC"]
["Global Marine Visibility",null,"2012-11-09","2012-11-23","2013-02-01"," "," "," "," ",null,"Grumbine","robert.grumbine@noaa.gov","EMC"]
["mmablib",null,"2012-10-01","2012-10-08","2012-11-20","n/a","n/a","n/a","n/a",null,"Grumbine","robert.grumbine@noaa.gov","EMC"]
["MRF lookalike","SEE COMMENTS",null,null,null,null,null,null,null,null," "," "," "]
[null,"forecast   ",null,null,null,null,null,null,null,null,null,null,"EMC","needs someone in EMC to claim. 11/27/12 - hoping to terminate this job."]
[null,"post",null,null,null,null,null,null,null,null,null,null,"EMC","Calls exglobal_post.sh.sms.  11/27/12 - hoping to terminate this job."]
[null,"fos","2012-11-21","2012-11-21","2013-02-02",null,null,null,null,null,"SIB","Bradley.Mabe@noaa.gov","SIB","11/27/12 - hoping to terminate this job.  Needs GFS."]
[null,"wafs","2012-11-21","2012-11-21","2013-02-02",null,null,null,null,null,"SIB","Bradley.Mabe@noaa.gov","SIB","11/27/12 - hoping to terminate this job.  Needs GFS."]
[null,"bulls",null,null,null,null,null,null,null,null,"SPA","chris.caruso.magee@noaa.gov","PMB","11/27/12 - hoping to terminate this job."]
[null,"icedrft1","n/a","n/a","n/a","n/a","n/a","n/a","n/a",null,"Grumbine","robert.grumbine@noaa.gov","EMC","renamed to JSICEDRFT.  See Line 75."]
[null,"awips","2012-11-21","2012-11-21","2013-02-02",null,null,null,null,null,"SIB","Bradley.Mabe@noaa.gov","SIB","11/27/12 - hoping to terminate this job.  Needs GFS."]
["LAMP",null,"2012-11-07","2012-12-07","2012-12-14","2013-03-20",{"$f":"SUM(F95,7)","v":"2013-03-27"},"2013-04-03","2013-04-10",null,"Ghirardelli","judy.ghirardelli@noaa.gov","MDL"]
["HRQPF",null,"2012-10-24","2012-10-26","2012-12-07","2013-04-08","2013-04-15","2013-04-22","2013-04-29",null,"Samplatsky","frederick.g.samplatsky@noaa.gov","MDL"]
["GLMP",null,null,null,null,null,null,null,null,null," "," "," "]
[null,"GLAMP_00 (obs)","2012-11-09","2012-12-14","2012-12-21",{"$f":"F95","v":"2013-03-20"},{"$f":"SUM(F98,7)","v":"2013-03-27"},"2013-04-03","2013-04-10",null,"Ghirardelli","judy.ghirardelli@noaa.gov","MDL"]
[null,"Forecast","2012-11-09","2012-12-14","2012-12-21",{"$f":"F95","v":"2013-03-20"},{"$f":"SUM(F99,7)","v":"2013-03-27"},"2013-04-03","2013-04-10",null,"Ghirardelli","judy.ghirardelli@noaa.gov","MDL"]
["Hourly JMDL","SEE COMMENTS","2012-07-31"," "," "," "," "," "," ",null,"Scallion","scott.scallion@noaa.gov","MDL","needs dumpjb!"]
["5km CONUS GMOS",null,"2012-07-31","2012-08-03","2012-12-06","2013-02-23",{"$f":"SUM(F101,7)","v":"2013-03-02"},"2013-03-09","2013-03-16",null,"Scallion","scott.scallion@noaa.gov","MDL"]
["AK GMOS",null,"2012-07-31","2012-08-03","2012-12-06",{"$f":"F101","v":"2013-02-23"},{"$f":"SUM(F102,7)","v":"2013-03-02"},"2013-03-09","2013-03-16",null,"Scallion","scott.scallion@noaa.gov","MDL"]
["HI GMOS",null,"2012-07-31","2012-08-03","2012-12-06",{"$f":"F101","v":"2013-02-23"},{"$f":"SUM(F103,7)","v":"2013-03-02"},"2013-03-09","2013-03-16",null,"Scallion","scott.scallion@noaa.gov","MDL"]
["GEFS MOS",null,"2012-07-31","2012-08-03","2012-12-06",{"$f":"F101","v":"2013-02-23"},{"$f":"SUM(F104,7)","v":"2013-03-02"},"2013-03-09","2013-03-16",null,"Scallion","scott.scallion@noaa.gov","MDL"]
["GFS MOS (Station)",null,"2012-07-31","2012-08-03","2012-12-06",{"$f":"F101","v":"2013-02-23"},{"$f":"SUM(F105,7)","v":"2013-03-02"},"2013-03-09","2013-03-16",null,"Scallion","scott.scallion@noaa.gov","MDL"]
["NMM MOS (Station",null,"2012-07-31","2012-08-03","2012-12-06",{"$f":"F101","v":"2013-02-23"},{"$f":"SUM(F106,7)","v":"2013-03-02"},"2013-03-09","2013-03-16",null,"Scallion","scott.scallion@noaa.gov","MDL"]
["2.5KM CONUS GMOS",null,"2012-07-31","2012-08-03","2012-12-06",{"$f":"F101","v":"2013-02-23"},{"$f":"SUM(F107,7)","v":"2013-03-02"},"2013-03-09","2013-03-16",null,"Scallion","scott.scallion@noaa.gov","MDL"]
["EKDMOS",null,"2012-09-11","2012-09-18","2012-11-29",{"$f":"E108+7","v":"2012-12-06"},{"$f":"SUM(F108,7)","v":"2012-12-13"},"2012-12-20","2012-12-27",null,"Wagner","john.l.wagner@noaa.gov","MDL"]
["ESTOFS",null,"2012-10-16","2012-10-16","2012-11-29","2013-04-10",{"$f":"SUM(F109,7)","v":"2013-04-17"},"2013-04-24","2013-05-01",null,"Feyen","jesse.feyen@noaa.gov","NOS"]
["GLOFS",null,"2012-09-19","2012-12-13","2013-01-04","2013-03-24",{"$f":"SUM(F110,7)","v":"2013-03-31"},"2013-04-07","2013-04-14",null,"Zhang","aijun.zhang@noaa.gov","NOS"]
["NOS OFS",null,null,null,null,null,null,null,null,null," "," "," "]
[null,"CBOFS","2012-09-19","2012-12-13","2013-01-04","2013-02-17",{"$f":"SUM(F112,7)","v":"2013-02-24"},"2013-03-03","2013-03-10",null,"Zhang","aijun.zhang@noaa.gov","NOS"]
[null,"DBOFS","2012-09-19","2012-12-13","2013-01-04",{"$f":"F112","v":"2013-02-17"},{"$f":"SUM(F113,7)","v":"2013-02-24"},"2013-03-03","2013-03-10",null,"Zhang","aijun.zhang@noaa.gov","NOS"]
[null,"TBOFS","2012-09-19","2012-12-13","2013-01-04",{"$f":"F112","v":"2013-02-17"},{"$f":"SUM(F114,7)","v":"2013-02-24"},"2013-03-03","2013-03-10",null,"Zhang","aijun.zhang@noaa.gov","NOS"]
[null,"NGOFS","2012-09-19","2012-12-13","2013-01-04",{"$f":"F112","v":"2013-02-17"},{"$f":"SUM(F115,7)","v":"2013-02-24"},"2013-03-03","2013-03-10",null,"Zhang","aijun.zhang@noaa.gov","NOS"]
["CREOFS",null,"2012-09-19","2012-12-13","2013-01-04",{"$f":"F112","v":"2013-02-17"},{"$f":"SUM(F116,7)","v":"2013-02-24"},{"$f":"SUM(G116,7)","v":"2013-03-03"},{"$f":"SUM(H116,7)","v":"2013-03-10"},null,"Zhang","aijun.zhang@noaa.gov","NOS"]
["ETSS",null,"2012-11-05","2012-11-26","2012-12-07","2013-02-17",{"$f":"SUM(F117,7)","v":"2013-02-24"},"2013-03-03","2013-03-10",null,"Taylor ","arthur.taylor @noaa.gov","MDL"]
["NOGAPS",null,"n/a","2012-11-15","2012-11-15","2012-12-03",{"$f":"SUM(F118,7)","v":"2012-12-10"},"2012-12-17","2012-12-24",null,"DF","rebecca.cosgrove@noaa.gov ","PMB"]
["COAMPS",null,"n/a","2012-11-15","2012-11-15","2012-12-03","2012-12-03","2012-12-04",{"$f":"SUM(H119,7)","v":"2012-12-11"},null,"DF","rebecca.cosgrove@noaa.gov ","PMB"]
["ARKV_NCAR",null,"n/a","2012-12-03","2012-12-03","n/a","n/a","12/3/121","2012-12-03",null,"SPA","chris.caruso.magee@noaa.gov ","PMB"]
["THANKS","SEE COMMENTS","2012-11-30","2012-12-04","2012-12-05",null,null,null,null,null,"Stoudt","jeffrey.stoudt@noaa.gov","PMB","WCOSS acct finally working as of 10/17/12.  Needs parallel website to use for output."]
["realtime","SEE COMMENTS","2012-10-29","2012-12-15","2012-12-20"," "," "," "," ",null,"Kempisty","kelly.kempisty@noaa.gov","PMB","Needs parallel website to use for output."]
["sdmedit utilities",null,"2012-11-07","2012-12-31","2013-01-07"," "," "," "," ",null,"Kempisty","kelly.kempisty@noaa.gov","PMB","11/28/12 - needs makeprepbufr.sh and oiqcbufr.sh"]
["JMA gempak",null,"2012-11-05","n/a","n/a","n/a","n/a"," "," ",null,"SPA","chris.caruso.magee@noaa.gov ","PMB","will test using live data from start."]
["WCOSS Transfer",null,"n/a","as soon as Gyre is avail.","as soon as Gyre is avail.","n/a","n/a","n/a","n/a","n/a","SPA","chris.caruso.magee@noaa.gov ","PMB","transfer between Tide and Gyre"]
["Zeus Transfer",null,"n/a","2012-11-14","2012-12-31"," "," "," ",{"$f":"SUM(H126,7)","v":"1900-01-07"},null,"SPA","chris.caruso.magee@noaa.gov ","PMB"]
["runhistory",null,"n/a","needs HPSS","needs HPSS","n/a","n/a","n/a","n/a","n/a","SPA","chris.caruso.magee@noaa.gov ","PMB"]
["prod setup",null,"n/a","2012-09-10","2012-11-05","n/a","n/a","n/a","n/a","n/a","SPA","chris.caruso.magee@noaa.gov ","PMB"]
["prod cleanup",null,null,"2012-09-10","2012-11-05","n/a","n/a","n/a","n/a","n/a","SPA","chris.caruso.magee@noaa.gov ","PMB"]
["admin",null,"n/a","2012-11-28","2012-11-28","n/a","n/a","n/a","n/a","n/a","SPA","chris.caruso.magee@noaa.gov ","PMB","still needs transfer_mgr done, but can't do this until Gyre is up."]
["snd_2web","SEE COMMENTS","n/a","2012-12-15","2012-12-15","n/a","n/a","n/a","n/a","n/a","SPA/SIB","chris.caruso.magee@noaa.gov,bradley.mabe@noaa.gov","PMB/SIB","Needs parallel website to use for output."]
["runtime",null,"n/a","2012-11-14","2012-12-31","n/a","n/a","n/a","n/a","n/a","SPA","chris.caruso.magee@noaa.gov",null,"needs parallel website to use for output."]
["RAW",null,"2012-12-01","2012-12-28","2013-02-02"," "," "," "," ",null,"SIB","bradley.mabe@noaa.gov","SIB"]
["RADARLVL2",null,"2012-12-01","2012-12-28","2013-02-02"," "," "," "," ",null,"Kumar","krishna.kumar@noaa.gov ","SIB"]
["Hourly",null,null,null,null,null,null,null,null,null," "," "," "]
[null,"gauge qc","n/a","2012-11-20","2012-12-28"," "," "," "," ",null,"Y. Lin","ying.lin@noaa.gov","EMC"]
[null,"dashboard","2012-11-20","2012-12-07","2012-12-15"," "," "," "," ",null,"Dataflow","rebecca.cosgrove@noaa.gov ","PMB"]
[null,"afplt/applt","2012-12-01","2012-12-28","2013-02-02"," "," "," "," ",null,"SIB","bradley.mabe@noaa.gov","SIB","needs model data"]
[null,"ecmwf","2012-11-21","n/a","n/a","n/a","n/a"," "," ",null,"SPA","chris.caruso.magee@noaa.gov ","PMB","11/27/12 SPA FF to test, using live data from start."]
[null,"ukmet","2012-12-01","2012-12-28","2013-02-02"," "," "," "," ",null,"SIB","bradley.mabe@noaa.gov","SIB","needs model data"]
[null,"nnet3","2012-11-21","2012-12-31","2013-01-04"," "," "," "," ",null,"SPA","chris.caruso.magee@noaa.gov","SPA"]
[null,"cpc_precip (obsolete)","n/a","n/a","n/a","n/a","n/a","n/a","n/a","n/a","obsolete ",null,"obsolete","obsolete per Y. Lin (EMC)"]
[null,"cpc_extract_dewpoint (SEE COMMENTS)","2012-11-05","2012-11-13","2012-12-17"," "," "," "," ",null,"Fulwood","george.fulwood@noaa.gov","CPC","col E was orig. 12/4/12.  re: col D, files were produced on date indicated, but results differ from those on CCS."]
[null,"cpc_make_dlysum (SEE COMMENTS)","2012-11-05","2012-11-13","2012-12-24"," "," "," "," ",null,"Fulwood","george.fulwood@noaa.gov","CPC","re: col D, files were produced on date indicated, but results differ from those on CCS."]
[null,"cpc_metsyn","2012-12-10","2012-12-19","2012-12-31"," "," "," "," ",null,"Fulwood","george.fulwood@noaa.gov","CPC"]
[null,"cpc_format_metsyn","2012-11-05","2012-12-19","2012-12-31"," "," "," "," ",null,"Fulwood","george.fulwood@noaa.gov","CPC"]
[null,"cpg","2012-11-13","2012-12-28","2013-02-02"," "," "," "," ",null,"Guan","shucai.guan@noaa.gov","SIB"]
[null,"asci_altimeter","2012-12-06","2012-12-19","2012-12-28"," "," "," "," ",null,"Kumar","krishna.kumar@noaa.gov ","SIB"]
[null,"nam_pcpn_anl","2012-08-02","2012-10-05","2012-12-28"," "," "," "," ",null,"Y. Lin","ying.lin@noaa.gov","EMC","was 6/29/12, 7/16/12, 7/31/12"]
[null,"nesdis_interp_gfs","2012-11-28","2012-12-15","2012-12-22"," n/a","n/a"," "," ",null,"SPA","chris.caruso.magee@noaa.gov","PMB"]
[null,"nesdis_dump_buoy (SEE COMMENTS)","2012-11-21","2012-12-15","2012-12-22","n/a","n/a"," "," ",null,"SPA","chris.caruso.magee@noaa.gov","PMB","needs dumpjb!"]
[null,"nesdis_push_radiosonde","n/a","2012-12-15","2012-12-22","n/a","n/a"," "," ",null,"SPA","chris.caruso.magee@noaa.gov","PMB","may be able to fold this into GDAS script."]
[null,"nesdis_dumpbuoy_goessst (SEE COMMENTS)","2012-11-28","2012-12-15","2012-12-22","n/a","n/a"," "," ",null,"SPA","chris.caruso.magee@noaa.gov","PMB","orphaned sorc (/nwprod/sorc/nesdis_extract_goessst.fd) and needs dumpjb!"]
[null,"radar","2012-12-01","2012-12-28","2013-01-10","n/a","n/a"," "," ",null,"Kumar","krishna.kumar@noaa.gov ","SIB"]
[null,"TPC/amsu (SEE COMMENTS)","2012-11-21","2012-11-27","2012-12-15",{"$f":"SUM(E155,7)","v":"2012-12-22"},{"$f":"SUM(F155,7)","v":"2012-12-29"}," "," ",null,"Krautkramer","alison.krautkramer@noaa.gov","NHC","needs dumpjb!"]
[null,"TPC/psurge","2012-10-22","2012-11-16","2012-12-07",{"$f":"SUM(E156,7)","v":"2012-12-14"},"2012-12-21"," "," ",null,"Taylor","arthur.taylor @noaa.gov","MDL"]
[null,"UVI","2012-11-30","2012-12-06","2012-12-06"," "," "," "," ",null,"Long","craig.long@noaa.gov","CPC","11/28/12 - col C was 11/16/12 w/ 2 weeks to D and another 2 to E."]
["Enlil",null,"2012-11-16","2012-12-15","2012-12-22","2013-03-17",{"$f":"SUM(F158,7)","v":"2013-03-24"},"2013-03-31","2013-04-07",null,"Millward","george.millward@noaa.gov","SWPC","11/16/12 - 50% done on Tide 11/27/12 - CCM made up rest of dates.  Asked GM for update. 11/28/12 - GM reports runtime too long."]
["Ingest (non EMC)"]
[null,"JSNI","2012-11-09","2012-11-13","2012-11-13","2012-12-05",{"$f":"SUM(F160,7)","v":"2012-12-12"},"2012-12-19","2012-12-26",null,"SPA","chris.caruso.magee@noaa.gov","PMB","needs EMC grib_snowgrib (Gayno)"]
[null,"JISHEF","2013-01-31","2013-01-31","2013-01-31",{"$f":"SUM(E161,7)","v":"2013-02-07"},"2013-02-14","2013-02-21","2013-02-28",null,"S. Katz","sid.katz@noaa.gov","CPC"]
[null,"JISHF","2013-01-31","2013-01-31","2013-01-31",{"$f":"SUM(E162,7)","v":"2013-02-07"},"2013-02-14","2013-02-21","2013-02-28",null,"S. Katz","sid.katz@noaa.gov","CPC"]
[null,"JIGOES_IR","n/a","2012-11-27","n/a","n/a","n/a","2012-11-27","2012-12-07",null,"SPA","chris.caruso.magee@noaa.gov",null,"needs EMC OBSPROC. 11/27/12 - will test using live data."]
[null,"JRADWND","2012-11-30","n/a","n/a","n/a","n/a","2012-12-07","2012-12-14",null,"SPA","chris.caruso.magee@noaa.gov",null,"needs EMC OBSPROC.  11/27/12 - will test using live data."]
[null,"JICLOUD","n/a","n/a","n/a","n/a","n/a","2012-12-04","2012-12-07",null,"SPA","chris.caruso.magee@noaa.gov",null,"needs EMC OBSPROC.  11/27/12 - will test using live data."]
[null,"JINAMSST","2012-11-20","n/a","n/a","n/a","n/a","2012-12-04","2012-12-07",null,"SPA","chris.caruso.magee@noaa.gov",null,"needs EMC OBSPROC.  11/27/12 - will test using live data."]
[null,"transfer canned data to Tide","n/a","2012-10-26","n/a","n/a","n/a","n/a","n/a","n/a","SPA","chris.caruso.magee@noaa.gov"]
["Decoders"]
[" ","decod_dcacar","2012-09-30","2012-11-15","n/a","n/a","n/a","2012-11-21","2012-11-21",null,"SIB","bradley.mabe@noaa.gov","SIB"]
[null,"decod_dcacft","2012-09-30","2012-11-15","n/a","n/a","n/a","2012-11-21","2012-11-21",null,"SIB","bradley.mabe@noaa.gov","SIB"]
[null,"decod_dcalps","2012-09-30","2012-11-30","n/a","n/a","n/a","2012-12-03","2012-12-03",null,"SIB","bradley.mabe@noaa.gov","SIB"]
[null,"decod_dcaltm","2012-09-30","2012-12-12","n/a","n/a","n/a",null,null,null,"SIB","bradley.mabe@noaa.gov","SIB"]
[null,"decod_dcbthy","2012-09-30","2012-11-30","n/a","n/a","n/a","2012-12-03","2012-12-03",null,"SIB","bradley.mabe@noaa.gov","SIB"]
[null,"decod_dccgrd","2012-09-30","2012-12-12","n/a","n/a","n/a",null,null,null,"SIB","bradley.mabe@noaa.gov","SIB"]
[null,"decod_dccoop","2012-09-30","2012-11-30","n/a","n/a","n/a","2012-12-03","2012-12-03",null,"SIB","bradley.mabe@noaa.gov","SIB"]
[null,"decod_dccrad","2012-12-05","2012-12-12","n/a","n/a","n/a",null,null,null,"SIB","bradley.mabe@noaa.gov","SIB","new to production on 11/19/12"]
[null,"decod_dccrn","2012-12-05","2012-11-30","n/a","n/a","n/a","2012-12-03","2012-12-03",null,"SIB","bradley.mabe@noaa.gov","SIB","new to production on 11/19/12"]
[null,"decod_dccsev","2012-09-30","2012-11-30","n/a","n/a","n/a","2012-12-03","2012-12-03",null,"SIB","bradley.mabe@noaa.gov","SIB"]
[null,"decod_dcdrbu","2012-09-30","2012-11-30","n/a","n/a","n/a","2012-12-03","2012-12-03",null,"SIB","bradley.mabe@noaa.gov","SIB"]
[null,"decod_dcears","2012-09-30","2012-12-12","n/a","n/a","n/a",null,null,null,"SIB","bradley.mabe@noaa.gov","SIB"]
[null,"decod_dcelrw","2012-09-30","2012-11-15","n/a","n/a","n/a","2012-11-21","2012-11-21",null,"SIB","bradley.mabe@noaa.gov","SIB"]
[null,"decod_dcepfl","2012-09-30","2012-11-30","n/a","n/a","n/a","2012-12-03","2012-12-03",null,"SIB","bradley.mabe@noaa.gov","SIB"]
[null,"decod_dcfsfc (SEE COMMENTS)","n/a","n/a","n/a","n/a","n/a","n/a","n/a",null,"SIB","bradley.mabe@noaa.gov","SIB","obsolete per J. Ator"]
[null,"decod_dcgffd","2012-09-30","2012-12-12","n/a","n/a","n/a",null,null,null,"SIB","bradley.mabe@noaa.gov","SIB"]
[null,"decod_dcgohw (SEE COMMENTS)","2012-09-30","2012-12-12","n/a","n/a","n/a",null,null,null,"SIB","bradley.mabe@noaa.gov","SIB","possibly obsolete per J. Ator"]
[null,"decod_dcgpsw","2012-09-30","2012-12-12","n/a","n/a","n/a",null,null,null,"SIB","bradley.mabe@noaa.gov","SIB"]
[null,"decod_dchydr","2012-09-30","2012-12-12","n/a","n/a","n/a",null,null,null,"SIB","bradley.mabe@noaa.gov","SIB"]
[null,"decod_dcigdr","2012-09-30","2012-12-12","n/a","n/a","n/a",null,null,null,"SIB","bradley.mabe@noaa.gov","SIB"]
[null,"decod_dcjpfl","2012-09-30","2012-12-12","n/a","n/a","n/a",null,null,null,"SIB","bradley.mabe@noaa.gov","SIB"]
[null,"decod_dckora","2012-09-30","2012-12-12","n/a","n/a","n/a",null,null,null,"SIB","bradley.mabe@noaa.gov","SIB"]
[null,"decod_dclsfc","2012-09-30","2012-11-15","n/a","n/a","n/a","2012-11-21","2012-11-21",null,"SIB","bradley.mabe@noaa.gov","SIB"]
[null,"decod_dcltng","2012-09-30","2012-11-30","n/a","n/a","n/a","2012-12-03","2012-12-03",null,"SIB","bradley.mabe@noaa.gov","SIB"]
[null,"decod_dcmap","2012-09-30","2012-11-30","n/a","n/a","n/a","2012-12-03","2012-12-03",null,"SIB","bradley.mabe@noaa.gov","SIB"]
[null,"decod_dcmeso","2012-09-30","2012-11-15","n/a","n/a","n/a","2012-11-21","2012-11-21",null,"SIB","bradley.mabe@noaa.gov","SIB"]
[null,"decod_dcmetr","2012-09-30","2012-11-15","n/a","n/a","n/a","2012-11-21","2012-11-21",null,"SIB","bradley.mabe@noaa.gov","SIB"]
[null,"decod_dcmopf","2012-09-30","2012-12-12","n/a","n/a","n/a",null,null,null,"SIB","bradley.mabe@noaa.gov","SIB"]
[null,"decod_dcmsfc","2012-09-30","2012-11-15","n/a","n/a","n/a","2012-11-21","2012-11-21",null,"SIB","bradley.mabe@noaa.gov","SIB"]
[null,"decod_dcncld","2012-09-30","2012-11-15","n/a","n/a","n/a","2012-11-21","2012-11-21",null,"SIB","bradley.mabe@noaa.gov","SIB"]
[null,"decod_dcnxrd","2012-09-30","2012-11-30","n/a","n/a","n/a","2012-12-03","2012-12-03",null,"SIB","bradley.mabe@noaa.gov","SIB"]
[null,"decod_dcozon","2012-09-30","2012-11-30","n/a","n/a","n/a","2012-12-03","2012-12-03",null,"SIB","bradley.mabe@noaa.gov","SIB"]
[null,"decod_dcp3rd","2012-12-12","2012-12-12","n/a","n/a","n/a",null,null,null,"SIB","bradley.mabe@noaa.gov","SIB","new to production on 11/19/12"]
[null,"decod_dcpaob (SEE COMMENTS)","n/a","n/a","n/a","n/a","n/a","n/a","n/a",null,"SIB","bradley.mabe@noaa.gov","SIB","obsolete per J. Ator"]
[null,"decod_dcpflr","2012-09-30","2012-11-15","n/a","n/a","n/a","2012-11-21","2012-11-21",null,"SIB","bradley.mabe@noaa.gov","SIB"]
[null,"decod_dcrast","2012-09-30","2012-12-12","n/a","n/a","n/a",null,null,null,"SIB","bradley.mabe@noaa.gov","SIB"]
[null,"decod_dcrocc","2012-09-30","2012-11-15","n/a","n/a","n/a","2012-11-21","2012-11-21",null,"SIB","bradley.mabe@noaa.gov","SIB"]
[null,"decod_dcsaob (SEE COMMENTS)","2012-09-30","2012-12-12","n/a","n/a","n/a","n/a","n/a",null,"SIB","bradley.mabe@noaa.gov","SIB","obsolete per J. Ator"]
[null,"decod_dcscd","2012-09-30","2012-12-12","n/a","n/a","n/a",null,null,null,"SIB","bradley.mabe@noaa.gov","SIB"]
[null,"decod_dcshef","2012-09-30","2012-11-15","n/a","n/a","n/a","2012-11-21","2012-11-21",null,"SIB","bradley.mabe@noaa.gov","SIB"]
[null,"decod_dcsnow","2012-09-30","2012-12-12","n/a","n/a","n/a",null,null,null,"SIB","bradley.mabe@noaa.gov","SIB"]
[null,"decod_dctama (SEE COMMENTS)","n/a","n/a","n/a","n/a","n/a","n/a","n/a",null,"SIB","bradley.mabe@noaa.gov","SIB","obsolete per J. Ator"]
[null,"decod_dctamd (SEE COMMENTS)","n/a","n/a","n/a","n/a","n/a","n/a","n/a",null,"SIB","bradley.mabe@noaa.gov","SIB","obsolete per J. Ator"]
[null,"decod_dctidg","2012-09-30","2012-11-15","n/a","n/a","n/a","2012-11-21","2012-11-21",null,"SIB","bradley.mabe@noaa.gov","SIB"]
[null,"decod_dcusgs","2012-09-30","2012-11-30","n/a","n/a","n/a","2012-12-03","2012-12-03",null,"SIB","bradley.mabe@noaa.gov","SIB"]
[null,"decod_dcusnd","2012-09-30","2012-11-15","n/a","n/a","n/a",null,null,null,"SIB","bradley.mabe@noaa.gov","SIB"]
["GRIB utilities",null,null,null,null,null,null,null,null,null,"SIB","bradley.mabe@noaa.gov","SIB"]
[" ","cnvgrib","2012-09-12","2012-11-08","2012-12-15",null,null,null,null,null,"SIB","bradley.mabe@noaa.gov","SIB"]
[null,"copygb","2012-10-11","2012-11-08","2012-12-15",null,null,null,null,null,"SIB","bradley.mabe@noaa.gov","SIB"]
[null,"copygb2","2012-10-10","2012-11-08","2012-12-15",null,null,null,null,null,"SIB","bradley.mabe@noaa.gov","SIB"]
[null,"degrib2","2012-06-08","2012-09-27","2012-12-15",null,null,null,null,null,"SIB","bradley.mabe@noaa.gov","SIB"]
[null,"grb2index","2012-09-12","2012-09-27","2012-12-15",null,null,null,null,null,"SIB","bradley.mabe@noaa.gov","SIB"]
[null,"grbindex","2012-09-12","2012-10-25","2012-12-15",null,null,null,null,null,"SIB","bradley.mabe@noaa.gov","SIB"]
[null,"invindex","2012-09-12","2012-10-25","2012-12-15",null,null,null,null,null,"SIB","bradley.mabe@noaa.gov","SIB"]
[null,"tocgrib","2012-09-12","2012-10-25","2012-12-15",null,null,null,null,null,"SIB","bradley.mabe@noaa.gov","SIB"]
[null,"tocgrib2","2012-09-12","2012-10-25","2012-12-15",null,null,null,null,null,"SIB","bradley.mabe@noaa.gov","SIB"]
[null,"tocgrib2super","2012-06-26","2012-10-25","2012-12-15",null,null,null,null,null,"SIB","bradley.mabe@noaa.gov","SIB"]
[null,"wgrib","2012-06-04","2012-06-04","2012-10-25",null,null,null,null,null,"SIB","bradley.mabe@noaa.gov","SIB"]
[null,"wgrib2","2012-06-04","2012-06-18","2012-10-25",null,null,null,null,null,"SIB","bradley.mabe@noaa.gov","SIB"]
["BUFR utilities",null,null,null,null,null,null,null,null,null,"SIB","bradley.mabe@noaa.gov","SIB"]
[" ","debufr","2012-09-12","2012-11-15",null,null,null,null,null,null,"SIB","bradley.mabe@noaa.gov","SIB","not sure this is working (SPA built in September)"]
[null,"tocsbufr","2012-11-09","2012-11-09",null,null,null,null,null,null,"SIB","bradley.mabe@noaa.gov","SIB"]
[null,null,null,null,null,null,null,null,null,null,"SIB","bradley.mabe@noaa.gov","SIB"]
["GEMPAK",null,"2012-11-05","2012-11-05","2012-11-19","n/a","n/a","n/a","n/a","n/a","SIB","bradley.mabe@noaa.gov","SIB"]

{"sheet":"util_sorc  - legacy graphics","index":1,"n_rows":67,"n_cols":5,"rows_kept":67,"cut":false,"hidden":false,"merged":[]}
[null,"black=still running in production.  red=obsolete.  Same for ush scripts (tab 2) and non-graphics (tab 3)"]
["source (/nwprod/util/sorc)","production job","libs used","scripts where found","date built (black) or deleted (red) on tide"]
["afcmpanl.fd","none","gph, gphfont, gphcntr","scripts/exupaplt.sh.sms --> util/ush/afoscmpanl.sh"]
["afconcat.fd","jrw1, jrw3, jrw4, jrw5","gph, gphcntr","scripts/exrw*.sh.sms --> util/ush/exwxdep.sh","2012-11-19"]
["afosmakr.fd","jrw1, jrw2, jrw3, jrw4, jrw5","gph","scripts/exrw*.sh.sms --> util/ush/exwxdep.sh; scripts/exrw*.sh.sms --> util/ush/exgeofielv.sh; scripts/exngm_traj.sh  --> mkafos.sh; util/ush/mkprsdiff.sh ","2012-11-19"]
["afosmakrx.fd","none","gph"]
["afossta.fd","jrw2","gph","scripts/exrw2.sh.sms --> util/ush/exafossta.sh","2012-11-19"]
["afsfcplt.fd","none","gph","util/ush/exafsfcplt.sh"]
["afstoawp.fd","none","gph","scripts/exupaplt.sh.sms --> util/ush/afstoawp.sh; util/ush/osoafos --> util/ush/contoawp.sh; util/ush/fncacafos; util/ush/foreign_afos; util/ush/mkprsdiff.sh; scripts/exgfs_redbook.sh --> util/ush/redbook_ntc.sh; scripts/exngm_traj.sh --> util/ush/redbook_ntc.sh"]
["airpltaf.fd","none","gph","scripts/exupaplt.sh.sms --> ush/afosairplt.sh"]
["apfaxanl.fd","none","gph, gphfont, gphcntr","scripts/exupaplt.sh.sms --> ush/faxairplt.sh"]
["archqm.fd","jrw1","gph","scripts/exrw1.sh.sms --> util/ush/exarchqm.sh.  May not need to link in -lgph.","2012-11-19"]
["avmerc.fd","none","gph, gphfont, gphcntr","util/ush/mkavmerc.sh"]
["avpolar.fd","none","gph, gphfont, gphcntr","util/ush/mkavpolar.sh"]
["awipmakr.fd","none","gph","util/ush/mkawpgphgbl.sh"]
["awipsend.fd","none","gph","util/ush/mkawpgphgbl.sh"]
["awpupair.fd","jafplt, jnam_fax","gph","scripts/exafosplot.sh.sms; scripts/exnam_fax.sh.sms","2012-11-19"]
["cacafos.fd","none","gph","util/ush/cacafos.sh; util/ush/fncacafos"]
["datarch.fd","jrw1","gph","scripts/exrw1.sh.sms --> util/ush/exdatarch.sh.  May not need to link in -lgph.","2012-11-19"]
["dispuras.fd","jrw2","gph","scripts/exrw2.sh.sms --> util/ush/expltpgm2.sh --> util/ush/reducemap.sh;  util/ush/smallmap;  util/ush/widemap","2012-11-19"]
["faxmakr.fd","jrw2, jgdas_fax, jgfs_fax, jnam_fax","gph, gphfont, gphcntr","scripts/exrw2.sh.sms --> util/ush/exgeofielv.sh; scripts/exgdas_fax.sh.sms --> util/ush/mkfax.sh; scripts/ex*_fax.sh.sms (*=gfs,nam) --> util/ush/mkfaxb.sh","2012-11-19"]
["faxmakrx.fd","jecmwf","gph, gphfont, gphcntr","scripts/execmwf.sh.sms","2012-11-19"]
["fillafos.fd","none","gph","ush/foreign_afos --> ush/foreign_fillafos.sh"]
["fxcompoz.fd","jrw2","gph","scripts/exrw2.sh.sms --> util/ush/expltpgm2.sh --> util/ush/reducemap.sh;  util/ush/smallmap;  util/ush/convert6bit.sh; util/ush/exwafsg3.sh","2012-11-19"]
["gdascounts.fd","j*_prep_post (*=gdas, gfs, nam, ndas,rtma,ruc2a), jcdas_prep1_post, jcdas_prep2_post","gph","scripts/exprep_post.sh.sms --> ush/gdas_summary.sh and gdascounts_archive_pyear.sh and gdas_countstat.sh","2012-11-19"]
["gendata.fd","jgfs_fax","gph","scripts/exgfs_fax.sh.sms --> util/ush/gfs_popstanl2.sh","2012-11-19"]
["geofielv.fd","jrw2","gph","scripts/exgeofielv.sh.sms --> util/ush/exgeofielv.sh","2012-11-19"]
["getfax.fd","none","gph","util/ush/postrdr.sh --> util/ush/sndrdr.sh"]
["graph_afwavplt.fd","jwave_global_prdgen, jwave_wna_prdgen","gph","scripts/exwaveglo_pgen.sh.sms; scripts/exwavewna_pgen.sh.sms","2012-11-19"]
["graph_afwndplv.fd","jrw2","gph","scripts/exrw2.sh.sms --> util/ush/exgeofielv.sh; util/ush/afoswndplv.sh","2012-11-19"]
["graph_gmexwvfx.fd","none","gph, gphfont, gphcntr"]
["graph_maxmintt.fd","jgfs_redbook","gph, gphcntr","scripts/exgfs_redbook.sh.sms "]
["graph_nhwavplt.fd","none","gph"]
["graph_opcwndmp.fd","none","gph, gphfont, gphcntr"]
["hmerc.fd","none","gph, gphfont, gphcntr","util/ush/mkhmerc.sh"]
["hrly_rdshpmpc.fd","jrw*",null,"scripts/exrw*.sh.sms"]
["icefax.fd","none","gph, gphfont, gphcntr"]
["mercfaxv.fd","none","gph, gphfont, gphcntr","util/ush/mkmercfax.sh"]
["plotmxmn.fd","jrw2","gph, gphfont, gphcntr","scripts/exrw2.sh.sms --> util/ush/expltpgm1.sh"]
["plotprec.fd","jrw2","gph, gphfont, gphcntr","scripts/exrw2.sh.sms --> util/ush/expltpgm2.sh"]
["plotsend.fd","jafplt, jnam_fax","gph","scripts/exafosplot.sh.sms; scripts/exnam_fax.sh.sms"]
["plotvpap.fd","jgfs_fax, jgdas_fax, jnam_fax","gph, gphcntr","scripts/exgfs_fax.sh.sms --> util/ush/gfs_postanl1.sh; scripts/ex*_fax.sh.sms (*=gdas,nam) --> util/ush/plotvpap.sh"]
["plotwafa.fd","jgfs_fax","gph, gphfont, gphcntr","scripts/exgfs_fax.sh.sms --> util/ush/expltwafs.sh*"]
["plotwafp.fd","jgfs_fax","gph, gphfont, gphcntr","scripts/exgfs_fax.sh.sms --> util/ush/expltwafs.sh*"]
["redbook_ntc.fd","jgfs_redbook, jrw2","gph","scripts/exgfs_redbook.sh.sms --> util/ush/redbook_ntc.sh; scripts/exrw2.sh.sms --> util/ush/exafossta.sh and exgeofielv.sh and exwxdep.sh"]
["rsonde.fd","none","gph, gphcntr","util/ush/mkwindalftf.sh"]
["sixbitb.fd","none","gph, gphfont, gphcntr","util/ush/mkwindalftf.sh"]
["sixbitb2.fd","jgfs_fax","gph, gphfont, gphcntr","scripts/exgfs_fax.sh.sms --> util/ush/gfs_postanl2.sh"]
["thinmxmn.fd","jrw2","gph, gphcntr","scripts/exrw2.sh.sms --> util/ush/expltpgm1.sh"]
["thinpap.fd","none","gph, gphcntr"]
["thinprec.fd","jrw2","gph, gphcntr","scripts/exrw2.sh.sms --> util/ush/expltpgm2.sh"]
["trpanl.fd","jgfs_fax","gph, gphfont, gphcntr","scripts/exgfs_fax.sh.sms --> util/ush/gfs_postanl1.sh "]
["trpsfprv.fd","jgfs_fax","gph, gphfont, gphcntr","scripts/exgfs_fax.sh.sms --> util/ush/trpsfprv.sh"]
["upaafos.fd","jafplt, jnam_fax","gph, gphcntr","scripts/exafosplot.sh.sms; scripts/exnam_fax.sh.sms"]
["upaprep.fd","jgfs_fax, jgdas_fax, jnam_fax","gph, gphcntr","scripts/exgfs_fax.sh.sms --> util/ush/gfs_postanl1.sh; scripts/ex*_fax.sh.sms (*=gdas,nam) --> util/ush/plotvpap.sh"]
["upawips.fd","jafplt, jnam_fax","gph, gphcntr","scripts/exafosplot.sh.sms; scripts/exnam_fax.sh.sms"]
["widemap.fd","jafplt","gph","scripts/exafosplot.sh.sms --> util/ush/snd2forgn --> util/ush/sndfaxwwb; util/ush/widemap"]
["wndalftv.fd","none","gph"]
["wndverf.fd","none","gph, gphfont, gphcntr"]
["wxpxanal.fd","jrw1, jrw3, jrw4, jrw5","gph, gphfont, gphcntr","scripts/exrw*.sh.sms --> util/ush/exwxdep.sh"]
["wxpxplot.fd","jrw1, jrw3, jrw4, jrw5","gph","scripts/exrw*.sh.sms --> util/ush/exwxdep.sh"]
[]
["source (/nwprod/sorc)","production job","libs used","scripts where found"]
["graph_airpolt1.fd","japplt","gph","scripts/exapplt.sh.sms; scripts/exngmafplt.sh.sms; scripts/exupaplt.sh.sms"]
["graph_fxcompoz.fd","none","gph"]
["hrly_afossta.fd","none","gph"]
["radar_summary.fd","jradar","gph, gphfont, gphcntr","scripts/exradar.sh.sms"]

{"sheet":"all util_ush scripts","index":2,"n_rows":204,"n_cols":5,"rows_kept":204,"cut":false,"hidden":false,"merged":[]}
["script (/nwprod/util/ush)","production job where found or utility","Center/Branch","developer, if known","date built (black) or deleted (red) on WCOSS"]
["afosairplt.sh","scripts/exupaplt.sh.sms"]
["afoscmpanl.sh","scripts/exupaplt.sh.sms"]
["afoswndplv.sh","not found"]
["afstoawp.sh","scripts/exupaplt.sh.sms, util/ush/contoawp.sh, fncacafos.sh, foreign_afos,mkprsdiff.sh"]
["airplt_gempak.sh","APPLT,  scripts/exngmafplt.sh.sms","SIB"]
["airplt_redbook.sh","APPLT, scripts/exngmafplt.sh.sms","SIB"]
["apxdx","utility used to update bufr tanks","SIB","Ator"]
["atcf2xml.prod.pl","TRACKER --> util/ush/genesis_tracker_poe.sh","EMC","GP Lou"]
["attach_ffs.pl","not found - check with MDL, was used in exlmp_prdgen.sh.sms at one point."]
["cacafos.sh","fncacafos"]
["cardinal.sh","RW0, RW1,RW2","SIB"]
["check_for_file_list.pl","utility called by scripts/excoamps_prdgen.sh.sms, exfnmocens_prdgen.sh.sms, exnogaps_prdgen.sh.sms","PMB","SPA","2012-11-15"]
["check_tanks.sh","utility called by scripts/exglobal_dump.sh.sms","EMC","Keyser"]
["chgres_mpi.sh","scripts/exgfs_meteogrm.sh.sms, exgfs_postsnd.sh.sms, exmrf_postsnd.sh.sms; all 3 --> ush/meteomrf.sh","EMC"]
["clean_obcount_30day.sh","not found - check EMC and SIB before deleting."]
["cleanup_rmdir.sh","PROD_CLEANUP","PMB","SPA","2012-11-07"]
["cleanup_thin_subdir.sh","PROD_CLEANUP","PMB","SPA","2012-11-07"]
["cleanup_thindir.sh","PROD_CLEANUP","PMB","SPA","2012-11-07"]
["combfr.sh","CPC_EXTRACT_DEWPOINT --> scripts/excpc_extract_dewpoint.sh.sms","CPC"]
["comkeep.sh","not found"]
["contoawp.sh","util/ush/osoafos"]
["conv_tcvit_to_carq.sh","TRACKER --> util/ush/genesis_tracker_poe.sh --> util/ush/verify_pair_tcvit.sh","EMC","GP Lou"]
["convert6bit.sh","utility called by mk_graphics.sh, which is called by many  scripts in /nwprod/util/ush and /nwprod/scripts.","SIB?"]
["crossref_jbn.pl","not found -- ask SIB (contains ref to web)","SIB "]
["date2jday.sh","utility called by many jobs","PMB","SPA","2012-11-14"]
["date_hycom2normal.sh","OFS_ATL_POST --> scripts/exofs_atl_post.hs.sms","EMC","Mehra"]
["date_normal2hycom.sh","utility used by OFS_ATL and RTOFS_GLO jobs","EMC","Mehra/Rivin"]
["day_name.sh","not found"]
["dfwindsx.sh","GFS_BULLS --> scripts/exgfs_bulletins.sh.sms","EMC"]
["dgex_getgfsbc.sh","DGEX_PRELIM --> scripts/exdgex_prelim.sh.sms","EMC","Rogers"]
["ens_trak_ave.sh","utility used by multiple ensemble jobs","EMC"]
["envllsubmit","not found - check w/ SPAs","PMB","SPA"]
["err_chk.sh","utility","PMB","SPA","2012-11-13"]
["errexit.sh","utility","PMB","SPA","2012-11-13"]
["exafossta.sh","RW2 --> scripts/exrw2.sh.sms ","SIB"]
["exafsfcplt.sh","not found"]
["exarbuoy.sh","RW2 --> scripts/exrw2.sh.sms","SIB"]
["exarchqm.sh","RW1 --> scripts/exrw1.sh.sms","SIB"]
["exdatarch.sh","RW1 --> scripts/exrw1.sh.sms","SIB"]
["exfnoc.sh","not found"]
["exgeofielv.sh","RW2 --> scripts/exrw2.sh.sms","SIB"]
["exhrly_realtime_asci2gempak.sh","HRLY_REALTIME jobs","PMB","Stoudt"]
["exhrly_realtime_mainpage.sh","HRLY_REALTIME jobs","PMB","Stoudt"]
["exhrly_realtime_startup.sh","HRLY_REALTIME jobs","PMB","Stoudt"]
["exmodels_realtime_asci2gempak.sh","MODELS_REALTIME jobs","PMB","Stoudt"]
["exmodels_realtime_gempak.sh","MODELS_REALTIME jobs","PMB","Stoudt"]
["exmodels_realtime_summary.sh","MODELS_REALTIME jobs","PMB","Stoudt"]
["exncarftp.sh","ARKV_NCAR --> scripts/exarkv4ncar.sh.sms","PMB","SPA"]
["expgribf.sh","GFS_AWIPS --> scripts/exgfs_grib_awips.sh.sms; MRF_AWIPS --> scripts/exmrf_grib_awips.sh.sms","EMC"]
["expltpgm1.sh","RW2 --> scripts/exrw2.sh.sms","SIB"]
["expltpgm2.sh","RW2 --> scripts/exrw2.sh.sms","SIB"]
["expltwafs.sh","GFS_FAX --> scripts/exgfs_fax.sh.sms","EMC"]
["expltwafs.sh.ntc","not found"]
["exradar.gempak.sh","RADAR --> scripts/exradar.sh.sms","SIB","Kumar"]
["exrdshpmpc.sh","RW1, RW2, RW3, RW4,RW5","SIB"]
["exrwdump.sh","RW0, RW1, RW2, RW3, RW4,RW5","SIB"]
["exsfcanl.sh","not found"]
["extractcpc_metsyn.sh","CPC_METSYN --> scripts/excpc_metsyn.sh.sms","CPC","Fulwood"]
["extrkr.sh","util used by multiple jobs","EMC"]
["extrkr_distatcf.sh","GFDL_TRACKER --> scripts/exgfdl_tracker.sh.sms --> util/ush/extrkr_gfdl.sh","EMC"]
["extrkr_gfdl.sh","GFDL_TRACKER --> scripts/exgfdl_tracker.sh.sms","EMC"]
["exwafsg3.sh","util/ush/explotwafs.sh.old"]
["exwxdep.sh","RW1, RW3, RW4,RW5","SIB"]
["faxairplt.sh","scripts/exupaplt.sh.sms"]
["finddate.sh","utility used by manyjobs","PMB","SPA","2012-11-07"]
["fnafos","not found"]
["fncacafos","not found"]
["fnl_recovery.control","not found"]
["foreign_afos","util/ush/fnafos"]
["foreign_fillafos.sh","util/ush/foreign_afos"]
["form_ntc.pl","utility used by several jobs","SIB?"]
["formbul.pl","utility used by several jobs","SIB?"]
["formbul_config","util/ush/form_ntc.pl, formbul.pl","SIB?"]
["formeans.sh","not found"]
["fsnt05tx.sh","GFS_BULLS --> scripts/exgfs_bulletins.sh.sms","EMC"]
["ftp_recover.sh","not found"]
["ftpget_com.sh","not found"]
["ftpget_list.sh","not found"]
["gdas_counts.sh","multiple prep_post jobs --> scripts/exprep_post.sh.sms","EMC?"]
["gdas_countstat.sh","util/ush/gdas_summary.sh","EMC?"]
["gdas_summary.sh","multiple prep_post jobs --> scripts/exprep_post.sh.sms","EMC?"]
["gdascounts_archive_pyear.sh","multiple prep_post jobs --> scripts/exprep_post.sh.sms","EMC?"]
["gdascounts_combine.sh","util/ush/gdas_summary.sh","EMC?"]
["genesis_gettrk_poe.sh","TRACKER --> util/ush/genesis_tracker_poe.sh","EMC","GP Lou"]
["genesis_tracker.sh","not found"]
["genesis_tracker_poe.sh","TRACKER","EMC","GP Lou"]
["getcosid.sh","utility used by several rhist jobs","PMB","SPA","obsolete per SE 11/27/12"]
["getges.sh","utility used by NDAS/NAM/DGEX prelim jobs","EMC","M. Iredell"]
["getgfsbc_nam.sh","utility used by NDAS/NAM prelim jobs","EMC","Rogers"]
["getosostat","RUNTIMES?","PMB","SPA","obsolete per SE 11/27/12"]
["getsnow_nam.sh","scripts/exngm_forecast.sh.sms"]
["gfs_postanl1.sh","GFS_FAX --> scripts/exgfs_fax.sh.sms","EMC"]
["gfs_postanl2.sh","GFS_FAX --> scripts/exgfs_fax.sh.sms","EMC"]
["gulfwave_tiff.sh","WAVE_GEMPAK_GIF","EMC or PMB"]
["hpsstar","CFS_CDAS_MONTHLY --> scripts/excfs_cdas_monthly.sh.sms "]
["ingest_qmgr.sh","utility used by ingest and radwnd jobs","PMB","SPA","2012-11-20"]
["interp.sh","NESDIS_INTERP_GFS --> scripts/exnesdis_interpgrib.sh.sms"]
["logfile.manager"," ",null,null,"2012-11-21"]
["make_NTC_file.pl","util used by multiple jobs","SIB?"]
["make_ntc_bull.pl","many jobs","PMB","SPA","2012-11-08"]
["make_ntc_file.pl","HYSPT_WAFS --> scripts/exhysplit_wafs.sh.sms","EMC","Manikin/Stunder"]
["make_tif.sh","/nwprod/gempak/ush/gempak_gfs_f00_gif.sh - check with SIB to see if this is still used.","SIB"]
["marine_genstats_akiss.sh","RW1 --> scripts/exrw1.sh.sms --> util/ush/marine_main_run_stats.sh","SIB"]
["marine_genstats_allstx.sh","RW1 --> scripts/exrw1.sh.sms --> util/ush/marine_main_run_stats.sh","SIB"]
["marine_main_run_stats.sh","RW1 --> scripts/exrw1.sh.sms","SIB"]
["marine_stats_eomqm.sh","RW1 --> scripts/exrw1.sh.sms --> util/ush/marine_main_run_stats.sh --> util/ush/marine_stats_sortrunqm.sh","SIB"]
["marine_stats_getrep_ak.sh","RW1 --> scripts/exrw1.sh.sms --> util/ush/marine_main_run_stats.sh --> util/ush/marine_genstats_akiss.sh","SIB"]
["marine_stats_getrep_iss.sh","RW1 --> scripts/exrw1.sh.sms --> util/ush/marine_main_run_stats.sh --> util/ush/marine_genstats_akiss.sh","SIB"]
["marine_stats_grepobs.sh","RW1 --> scripts/exrw1.sh.sms --> util/ush/marine_main_run_stats.sh --> util/ush/marine_stats_runcounts.sh","SIB"]
["marine_stats_runcounts.sh","RW1 --> scripts/exrw1.sh.sms --> util/ush/marine_main_run_stats.sh","SIB"]
["marine_stats_sortarch.sh","RW1 --> scripts/exrw1.sh.sms --> util/ush/marine_main_run_stats.sh","SIB"]
["marine_stats_sortarch_midmon.sh","RW1 --> scripts/exrw1.sh.sms --> util/ush/marine_main_run_stats.sh","SIB"]
["marine_stats_sortrunqm.sh","RW1 --> scripts/exrw1.sh.sms --> util/ush/marine_main_run_stats.sh","SIB"]
["marine_stats_sync_smstats.sh","RW1 --> scripts/exrw1.sh.sms --> util/ush/marine_main_run_stats.sh","SIB"]
["marine_stats_totalcounts.sh","RW1 --> scripts/exrw1.sh.sms --> util/ush/marine_main_run_stats.sh --> util/ush/marine_stats_runcounts.sh","SIB"]
["mgtrak_plots_glbl.sh","not found - check w/ T. Marchok and GP Lou"]
["mk_graphics.sh","utility called by many jobs","SIB?"]
["mkafos.sh","RW2 --> scripts/exrw2.sh.sms --> util/ush/exgeofielv.sh; scripts/exngm_traj.sh.sms","SIB"]
["mkavmerc.sh","not found"]
["mkavpolar.sh","not found"]
["mkawpgphgbl.sh","not found"]
["mkawpgrb.sh","util called by several jobs","SIB"]
["mkbull_ntc.sh","util called by several jobs","SIB?"]
["mkenswafs.sh","scripts/exenswafs.sh.sms"]
["mkfax.sh","GDAS_FAX --> scripts/exgdas_fax.sh.sms","EMC"]
["mkfaxb.sh","GFS_FAX --> scripts/exgfs_fax.sh.sms; NAM_FAX --> scripts/exnam_fax.sh.sms","EMC"]
["mkfnmoctovs.sh","not found"]
["mkfosrtgsst.sh","RTGSST --> scripts/exrtgsst.sh.sms","EMC","Stokes/Katz"]
["mkfosspc.sh","GFS_FOS --> scripts/exgfs_grib_fos.sh.sms; MRF_FOS --> scripts/exmrf_grib_fos.sh.sms","EMC"]
["mkfossst.sh","GDAS_SSTOI, RTGSST, RTGSSTHR","EMC","Stokes/Katz"]
["mkgefs_wafs.sh","GEFS_WAFS --> scripts/exgefs_wafs.sh.sms","EMC"]
["mkgrdbull.sh","not found"]
["mkhmerc.sh","not found"]
["mkmercfax.sh","not found"]
["mkpost65.sh","GFS_BULLS --> scripts/exgfs_bulletins.sh.sms --> util/ush/wrcorcx.sh","EMC",null,"11/28/12 - RC says this can be deleted since no products that are made by this are sent anywhere."]
["mkprsdiff.sh","not found"]
["mkpwd4prod","not found"]
["mkras2bit.sh","not found"]
["mkwafcgrd.sh","GFS_WAFS --> scripts/exgfs_grib_wafs.sh.sms","EMC"]
["mkwfsgbl.sh","GFS_WAFS --> scripts/exgfs_grib_wafs.sh.sms, MRF_WAFS --> scripts/exmrf_grib_wafs.sh.sms","EMC"]
["mkwindalftf.sh","GFS_FAX --> scripts/exgfs_fax.sh.sms --> util/ush/gfs_postanl1.sh","EMC"]
["mkwintem.sh","GFS_BULLS --> scripts/exgfs_bulletins.sh.sms","EMC"]
["month_name.sh","GFS_FAX_WAFS --> scripts/exgfs_fax_wafs.sh.sms","EMC"]
["mpmd.sh","utility - not sure if it's still used (references frost/snow)"]
["ncothanksphp.pl","THANKS_REALTIME --> scripts/exthanks_realtime.sh.sms","PMB","Stoudt"]
["osoafos","not found"]
["overdate.bufr_dump.sh","not found - keep per D. Keyser"]
["overdate.bufr_dump_2.sh","not found - keep per D. Keyser"]
["overdate.grib.sh","CFS_CDAS_MONTHLY --> scripts/excfs_cdas_monthly.sh.sms --> several ush scripts","EMC"]
["overdate.prepbufr.sh","not found - keep per D. Keyser"]
["overdate.sigma.sh","CFS_V1_FORECAST --> scripts/excfs_v1_fcst.sh.sms --> ush/cfs_v1_coldic.sh","EMC"]
["parcelftp.sh","not found"]
["plotvpap.sh","GFS_FAX --> scripts/exgfs_fax.sh.sms --> util/ush/gfs_postanl1.sh - check on this!","EMC"]
["postmsg.sh","utility used by all prod jobs","PMB","SPA","2012-11-07"]
["postrdr.sh","not found"]
["prep_step.sh","utility used by all prod jobs","PMB","SPA","2012-11-07"]
["print_pcl","RW2 --> scripts/exrw2.sh.sms --> util/ush/expltpgm2.sh --> util/ush/reducemap.sh; util/ush/widemap; util/ush/smallmap; util/ush/sndfaxwwb","SIB"]
["prodllsubmit","may be obsolete -- check w/ SPAs","PMB","SPA"]
["prodser_check.sh","utility used by SPAs","PMB","SPA"]
["recovery_gdas.sh","not found "]
["redbook_ntc.sh","utility used by multiple graphics scripts in /nwprod/util/ush","SIB"]
["reducemap.sh","RW2 --> scripts/exrw2.sh.sms --> util/ush/expltpgm2.sh --> util/ush/reducemap.sh; AFPLT --> scripts/exafosplot.sh.sms --> util/ush/snd2forgn --> util/ush/sndfaxwwb --> util/ush/widemap, util/ush/smallmap","SIB"]
["rmcomdir.sh","GDAS_POST_LOW","EMC"]
["rmcomfile.sh","not found"]
["run_apxdx.sh","utility used when updating bufr tanks","SIB","Ator"]
["runcacaf","util/ush/postrdr.sh"]
["satellite_daily.pl","multiple prep_post jobs --> scripts/exprep_post.sh.sms--> util/ush/gdas_summary.sh --> util/ush/satellite_summary.sh","EMC"]
["satellite_html.pl","multiple prep_post jobs --> scripts/exprep_post.sh.sms--> util/ush/gdas_summary.sh --> util/ush/satellite_summary.sh","EMC"]
["satellite_summary.sh","multiple prep_post jobs --> scripts/exprep_post.sh.sms --> util/ush/gdas_summary.sh","EMC"]
["scpget_list.sh","SCPGET"]
["scphourlyget_list.sh","SCPGET"]
["setpdy.sh","utility used by all prod jobs","PMB","SPA","2012-11-07"]
["setup.sh","utility used by all prod jobs","PMB","SPA","2012-11-14"]
["setupxfercheck.sh","utility used by SPAs?","PMB","SPA"]
["smallmap","AFPLT --> scripts/exafosplot.sh.sms --> util/ush/snd2forgn --> util/ush/sndfaxwwb","SIB"]
["snd2forgn","AFPLT --> scripts/exafosplot.sh.sms","SIB"]
["snd2forgntbl.sh","utility used by multiple jobs","SIB"]
["sndfaxwwb","AFPLT --> scripts/exafosplot.sh.sms-->util/ush/snd2forgn","SIB"]
["sndncdc","AFPLT --> scripts/exafosplot.sh.sms-->util/ush/snd2forgn","SIB"]
["sndrdr.sh","not found"]
["sort_tracks.sh","util/ush/genesis_tracker.sh"]
["sref_awips.sh","SREF_AWIPS","EMC","Du"]
["startmsg.sh","utility used by all prod jobs","PMB","SPA","2012-11-07"]
["startxvfb.sh","commented out of scripts/exradar.sh.sms","SIB","Kumar"]
["stopxvfb.sh","commented out of scripts/exradar.sh.sms","SIB","Kumar"]
["tcvit.sh","TRACKER --> util/ush/genesis_tracker_poe.sh --> util/ush/verify_pair_tcvit.sh --> util/ush/conv_tcvit_to_carq.sh","EMC","GP Lou"]
["test.pl","not found - check with R. Putt","PMB","Putt"]
["threadll_clean","not found"]
["threadll_init","not found"]
["trpsfprv.sh","GFS_FAX --> scripts/exgfs_fax.sh.sms","EMC"]
["tvercut_glbl.sh","TRACKER --> util/ush/genesis_tracker_poe.sh","EMC","GP Lou"]
["tvercut_opr.sh","TRACKER --> util/ush/genesis_tracker_poe.sh","EMC","GP Lou"]
["verfdate.sh","GFS_FAX_WAFS --> scripts/exgfs_fax_wafs.sh.sms","EMC"]
["verify_pair_glbl.sh","TRACKER --> util/ush/genesis_tracker_poe.sh","EMC","GP Lou"]
["verify_pair_tcvit.sh","TRACKER --> util/ush/genesis_tracker_poe.sh","EMC","GP Lou"]
["verify_ver.sh","TRACKER --> util/ush/genesis_tracker_poe.sh","EMC","GP Lou"]
["wafs_intdsk.sh","GFS_GRIB_WAFS --> scripts/exgfs_grib_wafs.sh.sms","EMC"]
["widemap","AFPLT --> scripts/exafosplot.sh.sms --> util/ush/snd2forgn --> util/ush/sndfaxwwb","SIB"]
["wmo5dayx.sh","GFS_BULLS --> scripts/exgfs_bulletins.sh.sms","EMC"]
["wrcorcx.sh","GFS_BULLS --> scripts/exgfs_bulletins.sh.sms","EMC"]
["wrfsi_utils.pm","utilities used by HWRF, NAM, SREF","EMC"]
["wrtdat.sh","TRACKER --> util/ush/genesis_tracker_poe.sh --> util/ush/tvercut_glbl.sh, tvercut_opr.sh","EMC","GP Lou"]
["zdate.sh","utility used by jobview","PMB","Putt","2012-11-07"]

{"sheet":"util_sorc - all other","index":3,"n_rows":145,"n_cols":6,"rows_kept":145,"cut":false,"hidden":false,"merged":[]}
[null,"black=still running in production.  red=obsolete.  Same for ush scripts (tab 2)"]
["source (/nwprod/util/sorc)","production job","scripts where found  (if no '.sh.sms', script is in /nwprod/ush or /nwprod/util/ush)","last known dev","date built (black) or deleted (red) on Tide","comments"]
["GetJobs.fd","JOBVIEW","exjobview.sh.sms","PMB (D. Ma)"]
["LLjobs.fd","JOBVIEW","exjobview.sh.sms","PMB?"]
["SMSJobs.fd","SMSJOBS","exsmsjobs.sh.sms","PMB (D. Ma)","2012-10-17"]
["anomgb.fd","ECMWF, UKMET","execmwf.sh.sms, exukmet.sh.sms, formeans.sh","EMC (M. Iredell)","2012-11-19"]
["apxdx.fd","none","run_apxdx.sh","SIB (Ator)","2012-11-19","needed when embedding new bufrtabs!"]
["aqm_smoke.fd","many AQM, GFSMOS_COGRIDDED_*PRDGEN, GLMP_FCST_PRDGEN, SMOKE_FCST_*, UVI","many aqm, exgfsmos_cogridded_*prdgen.sh.sms, exglmp_fcst_prdgen.sh.sms, exsmoke_runmain.sh, exuvi.sh.sms","SIB (Vuong)","2012-11-19"]
["artcbuoy.fd","RW2","exarbuoy.sh","SIB (Hollern)","2012-11-19"]
["ascii2shp.fd","many HYSPLIT, SMOKE_FCST_*","many hysplit in /nwprod/ush, smoke_national.sh, smoke_regional.sh","freeware","2012-11-14"]
["axform.fd","RADAR","exradar.sh.sms --> radar_get_sat_analysis.sh","? McIDAS"]
["bull2seq.fd","ECMWF, UKMET*","execmwf.sh.sms, exukmet*.sh.sms, exfnoc.sh","PMB (Bostelman)","2012-11-19"]
["bullproi.fd","ECMWF, UKMET*","execmwf.sh.sms, exukmet*.sh.sms, exfnoc.sh","PMB (Bostelman)","2012-11-19"]
["cardinal.fd","RW0, RW1, RW2","excardinal.sh, exrw0.sh.sms, exrw1.sh.sms, exrw2.sh.sms --> cardinal.sh","SIB (Facey)","2012-11-19"]
["cfscgrib2.fd","CFS_CDAS_MONTHLY*","excfs_cdas_monthly.sh.sms --> cfs_cnvgrib_bigfix.sh","SIB (Vuong)","2012-11-19"]
["cnvblk.fd","Sat data ingest jobs","ingest_process_days, ingest_process_orbits","EMC (Keyser)","2012-11-19","Have DK validate."]
["cnvgrib.fd","Many","many","SIB (Vuong)","2012-11-19"]
["cnvgrib2_wafs.fd","GFS_WAFS_GRIB2","exgfs_wafs_grib2.sh.sms","SIB (Vuong)","2012-11-19"]
["convert_sanldp.fd","CDC_ENS_INIT","excdc_ens_init.sh.sms","?","2012-11-19"]
["convert_sanlsp.fd","none","none","?","2012-11-19"]
["convert_sfcanldp.fd","CDC_ENS_INIT","excdc_ens_init.sh.sms","?","2012-11-19"]
["copygb.fd","Many","many","EMC (M. Iredell)","2012-11-19"]
["copygb2.fd","Many","many","SIB (Gilbert)","2012-11-19"]
["cwordsh.fd","many","many","EMC (Keyser)","2012-11-20","Have DK validate."]
["dayofweek.fd","RHIST","exrunhist.sh.sms --> rhist_savenw*.sh","PMB (Cooke)","2012-11-19"]
["debufr.fd","none","none","SIB (Ator)","2012-11-19","for dev use.  Ok to keep here."]
["degrib2.fd","none","none","SIB (Vuong)","2012-11-19","for dev use.  Ok to keep here."]
["dfwindsx.fd","GFS_BULLS","exgfs_bulletins.sh.sms --> dfwindsx.sh","SIB (Vuong)","2012-11-19"]
["ecauxflv.fd","ECMWF","execmwf.sh.sms","SIB (Vuong)","2012-11-19"]
["ecmwfdp3.fd","ECMWF","execmwf.sh.sms","SIB (Gilbert)","2012-11-19"]
["ens_trak_ave.fd","CMC_ENS_POST, WSR_ECMWFENS","excmcens_post.sh.sms, exenspcmc.sh.sms, exwsr_ecmwfens.sh.sms --> ens_trak_ave.sh","?","2012-11-19"]
["fdfax.fd","none","none","SIB (Kumar)"]
["fnmoctov.fd","none","mkfnmoctovs.sh","PMB (Johnson)"]
["formeanr.fd","none","formeans.sh","SIB (Facey)"]
["formeans.fd","none","formeans.sh","SIB (Caruso)"]
["formsg.fd","none","formeans.sh","SIB (Caruso)"]
["fsnt05tx.fd","GFS_BULLS","exgfs_bulletins.sh.sms --> fsnt05tx.sh","SIB (Vuong)","2012-11-19"]
["fsync_file.cd","Many","many","?","2012-10-25"]
["g2tmpl.fd","old version","old version","SIB (Kumar)",null,"11/7/12 - K. Kumar says this is old and should be deleted."]
["genesis_gettrk.fd","none","genesis_gettrk_poe.sh, genesis_tracker.sh","EMC (Marchok)",null,"confirmed obsolete by R. Wobus.  Replaced by gettrk_gen."]
["gettrk.fd","CDAS_PREP*, CDC_CDAS_PREP*, CFS_CDAS_PREP, GDAS_PREP, GFS_PREP, NAM_PREP, NDAS_PREP, *_TROPCY_QC_RELOC","exglobal_makeprepbufr.sh.sms, exnam_makeprepbufr.sh.sms, extropcy_qc_reloc.sh.sms --> tropcy_relocate.sh","EMC (Marchok)","2012-11-19"]
["grb2index.fd","many","many","SIB (Gilbert)","2012-11-19"]
["grbindex.fd","many","many","SIB (Gilbert)","2012-11-19"]
["grib2grib.fd","ARKV_NCAR","exarkv4ncar.sh.sms","SIB (Vuong)","2012-11-19"]
["gridbull.fd","GDAS_BULLS, GFS_BULLS, MRF_BULLS","exgdas_bulletins.sh.sms, exgfs_bulletins.sh.sms, exmrf_bulletins.sh.sms --> mkbull_ntc.sh, mkgrdbull.sh","SIB (Gilbert)","2012-11-19"]
["gridmap_fix.fd","SREF_PREP","exsref_prep.sh.sms --> sref_prep_get_ndas.sh","?","2012-11-19"]
["invindex.fd","many","many","SIB (Vuong)","2012-11-19"]
["jifcheck.fd","none","none","SIB (Ator)"]
["makewafs.fd","GDAS_SSTOI, GFS_WAFS, MRF_WAFS","exgdas_sstoi.sh.sms --> mkfossst.sh, exgfs_grib_wafs.sh.sms, exmrf_grib_wafs.sh.sms --> mkwfsgbl.sh; mkwfsgbl.sh.ntc","SIB (Vuong)","2012-11-19"]
["makewafs.fd.ntc","none","none","SIB (Vuong)"]
["marine_stats_eomqm.fd","RW1","exrw1.sh.sms --> marine_main_run_stats.sh","SIB (Caruso)","2012-11-19"]
["marine_stats_genak.fd","RW1","exrw1.sh.sms --> marine_main_run_stats.sh","SIB (Caruso)","2012-11-19"]
["marine_stats_genall.fd","RW1","exrw1.sh.sms --> marine_main_run_stats.sh","SIB (Caruso)","2012-11-19"]
["marine_stats_geniss.fd","RW1","exrw1.sh.sms --> marine_main_run_stats.sh","SIB (Caruso)","2012-11-19"]
["marine_stats_genstx.fd","RW1","exrw1.sh.sms --> marine_main_run_stats.sh","SIB (Caruso)","2012-11-19"]
["marine_stats_newstats.fd","RW1","exrw1.sh.sms --> marine_main_run_stats.sh","SIB (Caruso)","2012-11-19"]
["marine_stats_rmslash.fd","RW1","exrw1.sh.sms --> marine_main_run_stats.sh","SIB (Caruso)","2012-11-19"]
["marine_stats_totalcounts.fd","RW1","exrw1.sh.sms --> marine_main_run_stats.sh","SIB (Caruso)","2012-11-19"]
["mdate.fd","DUMP_MONITOR, HWRF_PRE_MASTER","exdump_monitor.sh.sms; exhwrf_pre_master.sh.sms --> hwrf_pre_master_start.sh","EMC (Keyser)","2012-11-19","Have DK validate."]
["meteoflx.fd","none","none","EMC (Sela)",null,"delete!  This is an old version of /nwprod/sorc/bufr_meteoflx.fd"]
["meteomrf.fd","none","none","EMC (Sela)",null,"delete!  This is an old version of /nwprod/sorc/bufr_meteomrf.fd"]
["mk125fls.fd","UKMET, UKMET_EARLY","exukmet.sh.sms, exukmet_early.sh.sms, exfnoc.sh","PMB (Bostelman)","2012-11-19"]
["mk125flw.fd","UKMET, UKMET_EARLY","exukmet.sh.sms, exukmet_early.sh.sms, exfnoc.sh","PMB (Bostelman)","2012-11-19"]
["mkawpngm.fd","DGEX_PRDGEN, *_GRIB_AWIPS","exdgex_prdgen.sh.sms --> dgex_icwf.sh, mkawpgrb.sh; ex*_grib_awips.sh.sms --> mkawpgrb.sh","PMB (Farley)","2012-11-19"]
["mkawpspc.fd","none","none","PMB (Farley)"]
["mkfosgrb.fd","WAVE_GLOBAL_PRDGEN","exwaveglo_pgen.sh.sms","SIB (Vuong)","2012-11-20"]
["mkfosspc.fd","GDAS_SSTOI, GFS_FOS, MRF_FOS","exgfs_grib_fos.sh.sms, exmrf_grib_fos.sh.sms --> mkfosspc.sh; exgdas_sstoi.sh.sms --> mkfossst.sh","SIB (Vuong)","2012-11-21"]
["mkfosspc.statfile.fd","none","none","SIB (Gilbert)"]
["mkgfsawps.fd","DGEX_PRDGEN, *_GRIB_AWIPS","exdgex_prdgen.sh.sms --> dgex_icwf.sh, mkawpgrb.sh; ex*_grib_awips.sh.sms --> mkawpgrb.sh","SIB (Vuong)","2012-11-19"]
["mkgrb25.fd","ECMWF, UKMET, UKMET_EARLY","execmwf.sh.sms, exukmet.sh.sms, exukmet_early.sh.sms","PMB (Bostelman)","2012-11-19"]
["mkwmoens.fd","GEFS_WAFS","exenswafs.sh.sms --> mkenswafs.sh, exgefs_wafs.sh.sms -->  mkgefs_wafs.sh","SIB (Vuong)","2012-11-19"]
["nam32tx.fd","NAM_BULLS","exnam_bulletins.sh.sms","SIB (Vuong)","2012-11-19"]
["navybull.fd","GDAS_MKNAVYBULLS, GFS_MKNAVYBULLS","exmknavyb.sh.sms","SIB (Vuong)","2012-11-19"]
["ncdump.fd","ESTOFS_FORECAST, ESTOFS_PREP","exestofs_fcst.sh.sms, exestofs_prep.sh.sms","NetCDF util","2012-11-19"]
["ndate.fd","many","many","EMC (M. Iredell)","2012-11-19"]
["nesdis_getice.fd","NESDIS_DUMPBUOY","exnesdis_dumpbuoy.sh.sms","?","2012-11-19"]
["nesdis_getice_new.fd","NESDIS_DUMPBUOY","exnesdis_dumpbuoy.sh.sms","NESDIS (Guch)","2012-11-19"]
["nesdis_getnames.fd","none","none","NESDIS (Guch)"]
["nesdis_interplt2.0.fd","none"," none","?",null,"section of code which calls this is never used in prod.  Interp.sh needs to be cleaned up."]
["nesdis_interplt2.5.fd","NESDIS_INTERP_GFS","exnesdis_interpgrib.sh.sms --> interp.sh","?"]
["nesdis_shipbuoy.fd","none","none","NESDIS (Guch)"]
["nesdis_shipbuoy_dds.fd","NESDIS_DUMPBUOY","exnesdis_dumpbuoy.sh.sms","NESDIS (Guch)","2012-11-19"]
["nesdis_wind.fd","none","none","NESDIS (Schreitz)"]
["nhour.fd","many","many","EMC (M. Iredell)","2012-11-19"]
["oprver_glbl.fd","JTRACKER","genesis_tracker_poe.sh --> verify_ver.sh","? (Gross/GP Lou)","2012-11-19","rename so sorc and exec match! Exec is named nhcver_opr_glbl.x"]
["overdate.dgexgrib.fd","AQM_PREPHYB*, DGEX_POST, DGEX_WRFPOST","exaqm_prephyb*.sh.sms, exdgex_post.sh.sms, exdgex_wrfpost.sh.sms","EMC (Rogers)","2012-11-19"]
["overdate.grib.fd","GODAS_V1_DUMP","exgodas_v1_dump.sh.sms --> overdate.grib.sh","SIB (Gilbert)","2012-11-19"]
["overdate.sigma.fd","SREF_PREP","overdate.sigma.sh","SIB (Gilbert)","2012-11-19"]
["overdateg2.fd","none","none","SIB (Vuong)","2012-11-19","for future use re: grib2.  Needs to stay.  SIB to port."]
["overens.grib.fd","GEFS_WAFS","exgefs_wafs.sh.sms","PMB (Gordon)","2012-11-19"]
["overgridnum_grib.fd","SREF_WRFPOST","exsref_wrfpost.sh.sms --> sref_wrfprdgen.sh","SIB (Gilbert)","2012-11-19","remove version in /nwprod/scripts.  Newer version is in /nwprod/ush."]
["overmodel.grib.fd","GEFS_WAFS","exgefs_wafs.sh.sms","SIB (Gilbert)","2012-11-19"]
["overmodelg2.fd","none","none","SIB (Vuong)","2012-11-19"," for future use re: grib2.  Needs to stay.  SIB to port."]
["overp1_grib.fd","GFS_AWIPS","exgfs_grib_awips.sh.sms","EMC (M. Iredell)","2012-11-19"]
["ovrddump.fd","none","overdate.bufr_dump.sh","EMC (Keyser)","2012-11-19","keep for dev use.  DK to port."]
["ovrddump_2.fd","none","overdate.bufr_dump_2.sh","EMC (Keyser)","2012-11-19","keep for dev use.  DK to port."]
["ovrdprep.fd","none","overdate.prepbufr.sh","EMC (Keyser)","2012-11-19","keep for dev use.  DK to port."]
["para_api.cd","none","threadll_init","?",null,"ask Putt"]
["plotpgm1.fd","RW2","expltpgm1.sh","SIB (Hollern)","2012-11-19"]
["plotpgm2.fd","RW2","expltpgm2.sh","SIB (Hollern)","2012-11-19"]
["post65.fd","GFS_BULLS, MRF_BULLS","exgfs_bulletins.sh.sms, exmrf_bulletins.sh.sms --> mkpost65.sh, wrcorcx.sh","SIB (Gilbert)","2012-11-19"]
["prsdiff.fd","none","mkprsdiff.sh","SIB (Facey)",null,"asking devs"]
["prtbul.fd","none","none","SIB (Gilbert)"]
["ras2bit.1728.fd","none","none","SIB (Kumar)"]
["ras2bit.fd","GFS_FAX","exgfs_fax.sh.sms --> gfs_postanl1.sh --> mkwindalftf.sh; mkras2bit.sh","SIB (Kumar)","2012-11-19"]
["ras2bity.fd","GDAS_TROPC, GFS_FAX","exgdas_tropc.sh.sms, exgfs_fax.sh.sms --> gfs_postanl2.sh","SIB (Kumar)","2012-11-19"]
["rdbfmsua.fd","GFS_GEMPAK_UPAPGIF","exmag_sigman_skew_t.sh.sms","SIB (Mabe)","2012-11-19"]
["rdbfua.fd","GFS_GEMPAK_UPAPGIF","exgempak_upapgif.sh.sms","SIB (Magee)","2012-11-19"]
["redsat.fd","GDAS_TROPC, GFS_FAX","exgdas_tropc.sh.sms, exgfs_fax.sh.sms --> gfs_postanl2.sh","SIB (Kumar)","2012-11-19"]
["rsondplt.fd","GFS_FAX","exgfs_fax.sh.sms --> gfs_postanl1.sh","SIB (Caruso)","2012-11-19"]
["smoke_copygb.fd","SMOKE_FCST","exsmoke_runmain*.sh.sms","SIB (Gilbert)","2012-11-19"]
["ss2g2.fd","GFS_SGRB2_0P5DEG","exglobal_sgrb2_gfs.sh.sms","SIB (Gilbert)","2012-11-19"]
["streamkr.fd","none","none","SIB (Kumar)"]
["supvit.fd","TROPCY_QC_RELOC","extropcy_qc_reloc.sh.sms --> tropcy_relocate.sh; genesis_tracker.sh; genesis_gettrk_poe.sh","EMC (Marchok)","2012-11-19"]
["subvit_gen_main.fd","none","genesis_gettrk_poe.sh ","EMC (Marchok)"]
["tbl2map.fd","GFS_GEMPAK_UPAPGIF","exgempak_skewt.sh.sms","?","2012-11-19"]
["thinpap.fd.white","none","none","SIB (Shimomura)"]
["timetwin.fd","*_PREP*_POST","exprep_post.sh.sms","PMB (Ballish)","2012-11-19"]
["tocgrib.fd","many","many","SIB (Gilbert)","2012-11-19"]
["tocgrib2.fd","many","many","SIB (Gilbert)","2012-11-19"]
["tocgrib2super.fd","many","many","SIB (Gilbert)","2012-11-19"]
["tocheder.fd","none","expltwafs.sh.old --> exwafsg3.sh","SIB (Sager)"]
["tocsbufr.fd","NNET3, GFS_POSTSND, NAM_POSTSND_*, NDAS_POST*","exnnet3.sh.sms; exgfs_postsnd.sh.sms --> gfs_sndp.sh; exnam_postsnd*.sh.sms, exndas_post*.sh.sms --> nam_namsndp.sh; tranjb","SIB (Ator)","2012-11-19"]
["ukauxfld.fd","UKMET, UKMET_EARLY","exukmet.sh.sms, exukmet_early.sh.sms","SIB (Kumar)","2012-11-19"]
["ukmetdp3.fd","UKMET ","exukmet.sh.sms","SIB (Kumar)","2012-11-19"]
["unpmgrb1.fd","UKMET, UKMET_EARLY","exukmet.sh.sms, exukmet_early.sh.sms, exfnoc.sh","SIB (Gilbert)","2012-11-19"]
["vafheder.fd","none","none","SIB (Sager)"]
["vdate.fd","none","none","SIB/EMC (Gilbert/Iredell)","2012-11-19"]
["wafcgrdc.fd","none","mkwafcgrd.sh","SIB (Gilbert)",null,"confirmed obsolete by H. Chuang"]
["webtitle.fd","APPLT, *_GEMPAK_GIF,  UKMET_GEMPAK_GRAPHICS","exapplt.sh.sms, exgempak_gif*, exgempak_ppt3hr_gif.sh.sms, exngmafplt.sh.sms, exukmet_gempak_graphics.sh.sms","SIB (Sager)","2012-11-19"]
["wgrib.aqm.cd","many AQM ","many aqm","CPC (Ebisuzaki)"]
["wgrib.cd","many","many","CPC (Ebisuzaki)","2012-10-25"]
["wgrib2.cd","many","many","CPC (Ebisuzaki)","2012-10-25"]
["wintemv.fd","GFS_BULLS","exgfs_bulletins.sh.sms --> mkwintem.sh","SIB (Vuong)","2012-11-19"]
["wmo5dayx.fd","GFS_BULLS","exgfs_bulletins.sh.sms --> wmo5dayx.sh","SIB (Vuong)","2012-11-19"]
["wmogrib.fd"," none","none","SIB/EMC (Gilbert/Katz)"]
["wrcorcx.fd","GFS_BULLS","exgfs_bulletins.sh.sms --> wrcorcx.sh","SIB (Vuong)","2012-11-19"]
["wrtdat.fd","TRACKER","genesis_tracker_poe.sh --> tvercut_*.sh --> wrtdat.sh","?","2012-11-19","should not be in prod - writes GrADS!"]
["xtrnprnt.fd","none","none","SIB (Vuong)"]
["y2kdate.fd","none","none","SPA (Lin)"]
[]
["ORPHANED"]
["setfirewx (exec)","no source in /nwprod/util/sorc","setup_firewx"]
["trpsfcmv (exec)","no source in /nwprod/util/sorc","none"]
["gdas_trpsfcmv (exec)","no source in /nwprod/util/sorc.  Used by GDAS_TROPC","exgdas_tropc.sh.sms"]